Cogmind - Beta 16 @@@ ROGUE MODE // 2026.02.01 @ 00:13:41 Player: AngelSpirit Result: Heading to fleet! Performance ------------- Evolutions (9) 4500 Regions Visited (34) 6800 Robots Destroyed (282) 1410 Value Destroyed (12196) 12196 Prototype IDs (127) 2540 Alien Tech Used (10) 2000 Bonus (21287) 21287 TOTAL SCORE: 50733 Bonus ------- High Alert Combat Kills 171 Follower Combat Kills 2098 Network Hubs Disabled 600 Destroyed Z-Imprinter 1000 Triggered Deep Caves Wall 500 Exposed GOLEM Chamber 500 Met Zhirov 300 Met Warlord at Base 500 MAIN.C Attacked Warlord 500 Warlord Defense Kills 1300 Built Enhanced Grunts 300 A7 Reached Mainframe 300 Met R17 at Cetus 500 Found Hidden Lab 3000 Used Core Reset Matrix 3000 Met R17 at Research 2000 Met Warlord at Research 2000 Win 3000 Friendly Fire -282 Cogmind --------- Core Integrity 1600/1600 Matter 224/425 Energy 237/240 System Corruption 0% Temperature Cool (8) Movement Flying (19) Location To Fleet Rendezvous Parts ------- > --- POWER (3) -------- Micro Antimatter Reactor Light Quantum Reactor > --- PROPULSION (9) --- Impulse Thruster Impulse Thruster Impulse Thruster Impulse Thruster Field Propulsion Array Impulse Thruster Array Experimental Q-thruster > --- UTILITY (11) ----- Medium Storage Unit Advanced Weight Redist. System Spectral Analyzer Advanced Sensor Array Advanced Signal Interpreter Experimental Targeting Computer Experimental Core Analyzer Advanced Reaction Control System Experimental Powered Armor Advanced Hacking Suite Advanced Hacking Suite > --- WEAPON (3) ------- Hypervelocity Mass Driver Sigix Broadsword > --- INVENTORY (12) --- Triangulator Advanced Corruption Screen Transdimensional Reconstructor Transdimensional Reconstructor Transdimensional Reconstructor Terrabomb Spacefold Activator Warp Cannon Warp Cannon Hypervelocity Mass Driver Advanced Micro-nuke Launcher Peak State ------------ > --- POWER ------------ Micro Antimatter Reactor Light Quantum Reactor > --- PROPULSION ------- Impulse Thruster Impulse Thruster Impulse Thruster Impulse Thruster Field Propulsion Array Impulse Thruster Array Experimental Q-thruster > --- UTILITY ---------- Medium Storage Unit Advanced Weight Redist. System Spectral Analyzer Advanced Sensor Array Advanced Signal Interpreter Experimental Targeting Computer Experimental Core Analyzer Advanced Reaction Control System Experimental Powered Armor Advanced Hacking Suite Advanced Hacking Suite > --- WEAPON ----------- Compact Mass Driver Sigix Broadsword > --- INVENTORY -------- Triangulator Advanced Corruption Screen GOLEM Unit Transdimensional Reconstructor Transdimensional Reconstructor Transdimensional Reconstructor Terrabomb Spacefold Activator Warp Cannon Warp Cannon Advanced Micro-nuke Launcher [Rating: 202] Favorites ----------- Power Mini Fusion Reactor Engine F-cell Engine Power Core Light Nuclear Core Reactor Mini Fusion Reactor Propulsion VTOL Module Treads Medium Treads Flight Unit VTOL Module Utility Advanced Hacking Suite Device Advanced Sensor Array Storage Medium Storage Unit Processor Experimental Core Analyzer Hackware Advanced Hacking Suite Protection Improved Medium Armor Plating Artifact Spacefold Activator Weapon Shock Maul Energy Gun Vortex Shotgun Energy Cannon Particle Cannon Ballistic Gun Enhanced Autogun Ballistic Cannon Compact Linear Accelerator Launcher Heavy Rocket Launcher Special Weapon Guided Remote Datajack Impact Weapon Shock Maul Slashing Weapon Power Sword Piercing Weapon CR-A16's Pointy Stick Build | -11 -10 -10 -10 -8 -7 -7 -7 -7 -7 -6 -6 -6 -6 -6 -6 -5 -5 -5 -5 -4 -4 -4 -4 -4 -4 -4 -3 -3 -3 -3 -2 -2 -2 -1 ------- Run | Yrd Mat Min Sub Mat Fac Low Low Zio Dee Pro Fac Ext Cet Arc Hub Fac Upp Upp War Pro Fac Was Fac Upp Upp Zhi Pro Res Arm Lab Res Qua Sec Acc Slots Evolved 16 | . . . . 4 2 . . . . . 2 . . . . 2 . . . . 2 . . . . . . 2 . . 2 . . . Power 1 | . . . . . . . . . . . . . . . . 1 . . . . . . . . . . . . . . . . . . Propulsion 6 | . . . . 2 1 . . . . . . . . . . 1 . . . . . . . . . . . 1 . . 1 . . . Utility 9 | . . . . 2 1 . . . . . 2 . . . . . . . . . 2 . . . . . . 1 . . 1 . . . Weapon . | . . . . . . . . . . . . . . . . . . . . . . . . . . . . . . . . . . . Parts Attached 365 | 2 13 . 12 24 13 1 5 6 20 4 33 5 3 3 4 11 2 9 24 . 12 1 3 1 3 2 . 32 7 6 58 31 12 3 Power 41 | . 2 . 2 3 . . 1 . 2 . 2 . . . 1 2 . 2 6 . 2 . . . . . . 2 1 . 10 2 . 1 Engine 11 | . 2 . 2 2 . . . . 1 . 2 . . . 1 . . . . . . . . . . . . . . . 1 . . . Core 13 | . . . . 1 . . 1 . . . . . . . . 2 . 2 4 . 2 . . . . . . . . . 1 . . . Reactor 17 | . . . . . . . . . 1 . . . . . . . . . 2 . . . . . . . . 2 1 . 8 2 . 1 Propulsion 81 | . 3 . 1 7 3 . 1 . 2 1 13 2 . . 1 3 . 3 5 . 4 1 2 . . . . 11 2 . 10 . 5 1 Treads 1 | . . . . . . . . . . . . . . . . . . . . . . . . . . . . . . . 1 . . . Leg . | . . . . . . . . . . . . . . . . . . . . . . . . . . . . . . . . . . . Wheel . | . . . . . . . . . . . . . . . . . . . . . . . . . . . . . . . . . . . Hover . | . . . . . . . . . . . . . . . . . . . . . . . . . . . . . . . . . . . Flight 80 | . 3 . 1 7 3 . 1 . 2 1 13 2 . . 1 3 . 3 5 . 4 1 2 . . . . 11 2 . 9 . 5 1 Utility 162 | . 5 . 3 6 6 1 2 5 13 2 12 3 1 1 2 3 2 4 9 . 5 . 1 1 3 2 . 10 4 3 29 18 6 . Device 71 | . 3 . . 1 . . 1 . 4 . 3 1 . . 1 1 1 2 3 . 4 . 1 1 1 1 . 6 3 1 19 11 2 . Storage 5 | . . . . . . . . . 2 . . . . . . 2 . . . . . . . . . . . 1 . . . . . . Processor 29 | . . . . 2 2 . . 3 . 1 5 . . . 1 . 1 . 4 . . . . . 1 . . 2 . . 6 1 . . Hackware 25 | . . . . 2 4 1 . 2 . 1 3 . . 1 . . . 1 . . . . . . 1 . . . 1 1 2 3 2 . Protection 31 | . 2 . 3 1 . . 1 . 7 . 1 2 1 . . . . 1 2 . 1 . . . . 1 . 1 . 1 2 3 1 . Artifact 1 | . . . . . . . . . . . . . . . . . . . . . . . . . . . . . . . . . 1 . Weapon 81 | 2 3 . 6 8 4 . 1 1 3 1 6 . 2 2 . 3 . . 4 . 1 . . . . . . 9 . 3 9 11 1 1 Energy Gun 19 | . . . 1 2 2 . . . 2 . 1 . 1 1 . . . . 3 . 1 . . . . . . 2 . . . 3 . . Energy Cannon 9 | . 1 . 1 1 . . . . . . . . . 1 . . . . . . . . . . . . . . . 2 1 2 . . Ballistic Gun 13 | 2 1 . . 3 2 . . . . . 1 . 1 . . . . . 1 . . . . . . . . . . . 2 . . . Ballistic Cannon 11 | . . . 1 . . . . . . . . . . . . . . . . . . . . . . . . 1 . . 3 4 1 1 Launcher 11 | . 1 . 2 . . . 1 . . . . . . . . 2 . . . . . . . . . . . 4 . . 1 . . . Special Weapon 2 | . . . . . . . . 1 . . . . . . . . . . . . . . . . . . . . . 1 . . . . Impact Weapon 3 | . . . . 1 . . . . . 1 1 . . . . . . . . . . . . . . . . . . . . . . . Slashing Weapon 8 | . . . 1 1 . . . . . . 2 . . . . 1 . . . . . . . . . . . 1 . . 1 1 . . Piercing Weapon 5 | . . . . . . . . . 1 . 1 . . . . . . . . . . . . . . . . 1 . . 1 1 . . Special Melee Weapon . | . . . . . . . . . . . . . . . . . . . . . . . . . . . . . . . . . . . Unidentified Prototypes 94 | . . . . 4 2 . . 4 9 . 5 . 3 1 . 4 . . 13 . . 1 . . . 3 . 14 . 7 13 7 4 . Parts Lost 81 | . 2 . 5 2 . 1 2 . 15 1 8 2 1 . 3 7 1 . 4 . 5 . . 1 . . . . 7 . 10 4 . . Power 9 | . . . 1 . . . 1 . 1 . 1 . . . . 1 . . 2 . 1 . . . . . . . 1 . . . . . Propulsion 39 | . 1 . 3 . . 1 . . 4 1 3 1 1 . 3 3 1 . 2 . 2 . . 1 . . . . 4 . 5 3 . . Utility 27 | . 1 . 1 1 . . 1 . 8 . 3 1 . . . 3 . . . . 1 . . . . . . . 2 . 4 1 . . Weapon 6 | . . . . 1 . . . . 2 . 1 . . . . . . . . . 1 . . . . . . . . . 1 . . . Highest Loss Streak 6 | . 2 . 1 2 . 1 1 . 6 2 4 1 1 . 3 6 1 . 3 . 3 . . 1 . . . . 5 . 2 3 . . To Critical Strikes . | . . . . . . . . . . . . . . . . . . . . . . . . . . . . . . . . . . . Average Backups 5 | . 4 5 4 4 4 5 4 4 3 3 3 4 4 4 4 5 7 3 4 4 3 4 4 3 4 4 4 4 7 6 8 8 8 11 Power . | . . . . . . . . . . . . . . . . 1 1 . . . . . . . . . . . . . . 1 . . Propulsion . | . . 1 . . . . . . . . . . . . . . . . . . . . 1 . . . . . . . . . . . Utility 2 | . 1 2 3 2 3 4 3 2 1 2 1 1 1 1 1 2 3 2 2 2 2 2 2 2 3 2 2 2 5 2 4 3 2 3 Weapon 2 | . 1 2 1 1 1 1 1 2 1 1 1 2 2 2 2 2 2 1 1 2 1 1 1 . . 1 1 1 2 2 2 3 3 3 Tool/Special . | . . . . . . . . . . . . . . . . . . . . . . . . . . . . . . . . . . . Unused Backups 45 | . 5 . 1 4 4 1 1 3 3 . 2 . . . 1 . 2 . 1 . 1 1 . . 1 . . 1 2 2 . 1 . 8 Power 3 | . . . 1 . . . . . 1 . . . . . . . . . . . . . . . . . . . . 1 . . . . Propulsion 1 | . . . . 1 . . . . . . . . . . . . . . . . . . . . . . . . . . . . . . Utility 26 | . 2 . . 3 4 1 1 3 2 . 2 . . . . . 1 . . . . 1 . . . . . . 2 1 . . . 3 Weapon 10 | . 3 . . . . . . . . . . . . . . . 1 . 1 . 1 . . . 1 . . 1 . . . 1 . 1 Tool/Special 5 | . . . . . . . . . . . . . . . 1 . . . . . . . . . . . . . . . . . . 4 Average Slot Usage (%) 76 | . 82 100 77 81 86 84 87 83 56 61 79 90 97 86 90 75 45 51 96 100 93 100 100 99 93 93 94 90 78 41 71 61 66 83 Engine 2 | . 8 14 11 6 1 . . . . 5 4 5 6 6 5 . . . . . . . . . . . . . . . . . . . Core 2 | . . . . 2 3 5 4 5 . . . . . . . 4 . . 9 11 7 10 10 10 10 10 10 4 3 . . . . . Reactor 1 | . . . . . . . . . . . . . . . . . . . . . . . . . . . . 3 4 4 6 4 5 6 Flight 19 | . 19 28 16 22 31 25 28 29 14 14 21 28 31 26 30 23 9 8 33 35 30 31 31 30 26 26 26 23 16 9 14 8 13 25 Device 9 | . 22 28 23 13 6 5 5 5 1 10 5 5 6 6 6 4 . 1 4 5 12 15 15 14 10 10 10 9 14 . 12 11 11 11 Storage 1 | . . . . . . . . . . . . . . . . 3 3 . . . . . . . . . . 1 4 4 4 4 3 3 Processor 15 | . . . . 4 6 11 11 14 17 17 23 21 20 20 20 17 16 17 17 17 15 15 15 15 20 21 21 20 14 13 14 18 16 15 Hackware 8 | . . . . 10 21 17 13 7 2 . 10 11 13 13 13 11 5 9 11 11 10 10 10 10 14 10 10 9 9 9 7 7 7 7 Protection 2 | . 3 . 4 2 . . 2 4 6 4 2 5 6 6 6 1 . . 5 5 5 5 5 5 . 3 5 5 2 . 1 1 1 3 Energy Gun 1 | . . . 3 . 4 . . . . . . . 3 3 . . . . 4 5 4 5 5 5 5 5 5 4 1 . . . . . Ballistic Gun 1 | . 19 14 . 3 1 11 9 6 . . . . . . . . . . . . . . . . . . . . . . . . . . Impact Weapon 2 | . . . . 5 5 5 5 5 5 5 4 5 6 2 6 4 4 5 . . . . . . . . . . . . . . . . Slashing Weapon 1 | . . . 6 7 . . . . . . 2 5 . . . . . . . . . . . . . . . . . . 2 . 2 3 Piercing Weapon 1 | . . . . . . . . . . . 2 . . . . . 1 5 4 5 5 5 5 5 5 5 5 1 3 . 1 . . . Peak Build Rating 202 | 2 9 9 14 32 68 68 66 86 86 66 102 100 92 90 86 93 51 64 111 102 115 112 118 119 109 112 111 149 152 113 178 175 187 202 Average Rating 87 | 1 7 9 10 25 54 66 62 73 64 59 81 96 88 82 84 76 42 44 96 102 105 104 111 117 107 108 110 134 134 74 136 115 140 199 On Entrance 80 | . 2 9 9 10 32 68 66 63 86 62 63 100 84 82 83 63 52 38 62 102 102 104 105 118 104 108 111 111 149 90 98 165 123 187 Avg Prop Armor Cover (%) 10 | . . . . 10 . . . . . . . . . . . . . . . . . . . . . . . . . . . . . . Naked Turns . | . . . . . . . . . . . . . . . . . . . . . . . . . . . . . . . . . . . Heaviest Build 69 | 2 9 9 18 18 14 14 26 22 22 13 23 30 28 25 23 27 13 21 35 30 34 33 36 34 33 27 29 47 46 24 56 55 56 69 Greatest Support 82 | 3 14 14 14 26 30 26 26 26 26 15 34 32 30 25 31 36 14 21 36 36 46 35 41 41 33 33 33 50 48 24 71 64 65 82 Greatest Overweight (x) 4 | . 1 . 4 1 . . . . 1 . 1 1 1 . 1 1 1 . . . . 1 . . . . . 1 1 . 1 2 1 . Average Overweight (x) . | . . . . . . . . . . . . . . . . . . . . . . . . . . . . . . . . . . . Largest Inventory Capacity 12 | 5 5 5 5 5 5 5 5 5 5 5 5 5 5 5 5 10 10 5 5 5 5 5 5 5 5 5 5 10 10 10 10 10 12 12 Average Capacity 6 | 5 5 5 5 5 5 5 5 5 5 5 5 5 5 5 5 8 8 5 5 5 5 5 5 5 5 5 5 6 10 10 10 10 10 12 Most Carried 12 | 1 5 5 5 5 5 5 5 5 5 5 5 5 5 5 5 10 10 5 5 5 5 5 5 5 5 5 5 8 10 10 10 10 12 12 Average Carried 6 | . 4 5 4 4 4 5 4 4 3 4 4 5 5 5 4 7 8 4 4 5 4 4 5 4 4 4 5 5 8 7 9 9 9 11 Final Capacity 12 | 5 5 5 5 5 5 5 5 5 5 5 5 5 5 5 5 10 5 5 5 5 5 5 5 5 5 5 5 10 10 10 10 10 12 12 Final Carried 12 | 1 5 5 5 5 5 5 5 5 5 5 5 5 5 5 5 10 5 5 5 5 5 5 5 5 5 5 5 8 10 10 10 10 12 11 Class Distribution -------------------- 28% | Hacker-Scout 13% | Mutant 11% | Hacker-Sprinter 10% | Scavenger-Scout 6% | Alien-Scout 5% | Scavenger-Sprinter 5% | Sprinter 4% | Scavenger-Ninja 3% | Hacker-Mutant Dominant Class ---------------- Mutant | -10/Materials Mutant | -10/Mines Mutant | -10/Subcaves Hacker-Sprinter | -8/Materials Hacker-Sprinter | -7/Factory Hacker-Sprinter | -7/Lower Caves Hacker-Sprinter | -7/Lower Caves Sprinter | -7/Zion Sprinter | -7/Deep Caves Sprinter | -6/Proximity Caves Hacker-Scout | -6/Factory Hacker-Scout | -6/Extension Commander-Scout | -6/Cetus Hacker-Scout | -6/Archives Hacker-Scout | -6/Hub_04(d) Hacker-Scout | -5/Factory Mutant | -5/Upper Caves Hacker-Gladiator | -5/Upper Caves Scavenger-Sprinter | -5/Warlord Scavenger-Sprinter | -4/Proximity Caves Scavenger-Sprinter | -4/Factory Scavenger-Ninja | -4/Waste Scavenger-Ninja | -4/Factory Scavenger-Ninja | -4/Upper Caves Hacker-Scout | -4/Upper Caves Scavenger-Scout | -4/Zhirov Scavenger-Scout | -3/Proximity Caves Hacker-Scout | -3/Research Hacker-Ninja | -3/Armory Hacker-Mutant | -3/Lab Scavenger-Scout | -2/Research Hacker-Scout | -2/Quarantine Alien-Scout | -2/Section 7 Alien-Scout | -1/Access Resources | -11 -10 -10 -10 -8 -7 -7 -7 -7 -7 -6 -6 -6 -6 -6 -6 -5 -5 -5 -5 -4 -4 -4 -4 -4 -4 -4 -3 -3 -3 -3 -2 -2 -2 -1 ----------- Run | Yrd Mat Min Sub Mat Fac Low Low Zio Dee Pro Fac Ext Cet Arc Hub Fac Upp Upp War Pro Fac Was Fac Upp Upp Zhi Pro Res Arm Lab Res Qua Sec Acc Matter Collected 8030 | 180 319 . 445 553 170 10 176 196 346 148 432 147 40 40 40 167 248 123 345 . 110 . 16 104 30 80 20 831 130 . 1054 1141 251 138 Remotely . | . . . . . . . . . . . . . . . . . . . . . . . . . . . . . . . . . . . Salvage Created 11857 | . 544 . 428 659 595 . 256 . 300 70 1898 1448 . 222 399 381 303 33 480 137 688 . 31 89 60 360 25 470 41 . 381 892 320 347 Parts 526 | . 43 . 24 46 20 . 16 . 22 6 79 34 . 8 8 15 11 . 20 5 35 . 3 3 1 4 2 27 5 . 15 44 14 16 Haulers Intercepted 34 | . 2 . . 3 4 . . . . . 8 7 . . 2 2 . . . . . . . . . . . 2 . . 3 . . 1 Recyclers Shooed 3 | . 1 . . . . . . . . . 1 . . . . . . . . . . . . . . . . . . . . . . 1 Parts Field Recycled . | . . . . . . . . . . . . . . . . . . . . . . . . . . . . . . . . . . . Retrieved Matter . | . . . . . . . . . . . . . . . . . . . . . . . . . . . . . . . . . . . Parts Self-Destructed 56 | . . . 16 . . . 7 . . 3 . . . . . . 3 2 . 6 . . . 1 11 2 5 . . . . . . . Prevented 10 | . . . . . . . 1 . . . . . . . . . 4 . . . . . . 2 2 . 1 . . . . . . . Parts Restored . | . . . . . . . . . . . . . . . . . . . . . . . . . . . . . . . . . . . Kills | -11 -10 -10 -10 -8 -7 -7 -7 -7 -7 -6 -6 -6 -6 -6 -6 -5 -5 -5 -5 -4 -4 -4 -4 -4 -4 -4 -3 -3 -3 -3 -2 -2 -2 -1 ------- Run | Yrd Mat Min Sub Mat Fac Low Low Zio Dee Pro Fac Ext Cet Arc Hub Fac Upp Upp War Pro Fac Was Fac Upp Upp Zhi Pro Res Arm Lab Res Qua Sec Acc Combat Hostiles Destroyed 181 | . 9 . 9 9 6 . 14 . 8 6 15 18 . 2 4 2 12 . 9 3 14 . . 3 . . . 5 2 . 5 14 6 6 Melee 35 | . . . 3 6 2 . . . 3 . 9 3 . 1 1 1 3 . . . 1 . . . . . . . . . 1 . 1 . Guns 36 | . 6 . . 2 . . 3 . . . . . . . . . . . 5 3 12 . . 2 . . . 1 2 . . . . . Cannons 11 | . . . 4 . . . . . . . . . . . . . . . . . . . . . . . . 1 . . . 6 . . AOE 69 | . 3 . 2 . . . 10 . 3 6 4 9 . . . 1 7 . 4 . 1 . . 1 . . . 3 . . 4 . 5 6 Classes Destroyed 28 | . 9 . 5 1 . . . . 3 . 2 . . . . . 1 . 4 . . . . . . . . . 1 . . 2 . . Worker 10 | . 1 . . 1 1 . . . . . 1 . . . . 1 . . . . 3 . . . . . . 2 . . . . . . Builder 5 | . . . . . . . . . . . 2 . . . . 1 . . . . . . . . . . . 1 . . . . . 1 Tunneler 2 | . 2 . . . . . . . . . . . . . . . . . . . . . . . . . . . . . . . . . Hauler 34 | . 2 . . 3 4 . . . . . 8 7 . . 2 2 . . . . . . . . . . . 2 . . 3 . . 1 Recycler 7 | . 1 . . 1 . . . . . . 3 . . . . . . . . . 2 . . . . . . . . . . . . . Minesweeper 3 | . . . . . . . . . . . . . . . . . 1 1 . . . . . . . . 1 . . . . . . . Mechanic 3 | . 1 . . 1 . . . . . . . . . . . . . . . . . . 1 . . . . . . . . . . . Operator 14 | . 1 . . 3 1 . . . . . 2 . . 3 1 1 . . . . . . . . . . . 2 . . . . . . Turret 2 | . . . 2 . . . . . . . . . . . . . . . . . . . . . . . . . . . . . . . Watcher 24 | . 2 . . 1 2 . . . . . 5 1 . . . 3 . . . . . . 1 . . . . 1 1 . 1 . 2 4 Swarmer 69 | . 6 . . 4 . . 13 . . 6 4 6 . . . . 3 . . . 10 . . 2 . . . 2 . . 5 . 4 4 Saboteur 2 | . . . . . . . . . . . . . . . . . . . . . . . . . . . . . 2 . . . . . Grunt 38 | . 3 . . 2 4 . . . . . 4 8 . . 2 . 7 . 4 . . . . . . . . 1 . . . 3 . . Brawler 2 | . . . . . . . . . . . . . . . . . . . 1 . 1 . . . . . . . . . . . . . Protector 1 | . . . . . . . . . . . . . . . . . . . 1 . . . . . . . . . . . . . . . Sentry 21 | . . . 1 2 2 . 1 . . . 2 3 . 2 2 1 1 . . 1 . . . 1 . . . 1 . . . . 1 . Hunter 4 | . . . . 1 . . . . . . . . . . . . 1 . . . . . . . . . . 1 . . . . 1 . Programmer 14 | . . . . . . . . . . . 5 1 . . . 1 . . . 2 3 . . . . . . . . . . . . 2 Behemoth 1 | . . . . . . . . . . . . . . . . . . . 1 . . . . . . . . . . . . . . . Quarantine Guard 9 | . . . . . . . . . . . . . . . . . . . . . . . . . . . . . . . . 9 . . Executioner 2 | . . . . . . . . . . . . . . . . . . . 2 . . . . . . . . . . . . . . . Fortress 1 | . . . . . . . . . . . . . . . . . . . . . . . . . . . . . . . . 1 . . Artisan 2 | . . . 2 . . . . . . . . . . . . . . . . . . . . . . . . . . . . . . . Cobbler 1 | . . . 1 . . . . . . . . . . . . . . . . . . . . . . . . . . . . . . . Subdweller 8 | . . . 8 . . . . . . . . . . . . . . . . . . . . . . . . . . . . . . . Z-Technician 4 | . . . . . . . . . 4 . . . . . . . . . . . . . . . . . . . . . . . . . Z-Light 4 | . . . . . . . . . 4 . . . . . . . . . . . . . . . . . . . . . . . . . Assembled 3 | . . . . . . . . . 3 . . . . . . . . . . . . . . . . . . . . . . . . . Golem 1 | . . . . . . . . . 1 . . . . . . . . . . . . . . . . . . . . . . . . . Mutant 1 | . . . . . . . . . . . . . . . . . . . . . . . . . . . . . . . . 1 . . Best Kill Streak 9 | . 6 . 2 4 3 . 7 . 3 3 8 9 . 2 2 3 6 1 5 3 7 . 1 3 . . 1 3 3 . 4 2 5 8 Combat Bots Only 9 | . 3 . 2 4 3 . 7 . 3 3 6 9 . 2 1 1 6 . 5 3 4 . . 3 . . . 2 2 . 4 2 5 6 Max Kills in Single Turn 8 | . 3 . 1 2 1 . 3 . 3 3 4 8 . 1 1 2 2 1 2 1 1 . 1 1 . . 1 3 2 . 3 1 3 4 Gunslinging 1 | . . . . 1 . . . . . . . . . . . . . . . . . . . . . . . . . . . . . . Exploded 8 | . 3 . 1 . . . 3 . 3 3 2 8 . . . 1 2 . 2 . 1 . . 1 . . . 2 . . 3 . 3 4 Melee 1 | . . . 1 1 1 . . . 1 . 1 1 . 1 1 1 1 . . . 1 . . . . . . . . . 1 . 1 . Uniques/NPCs Destroyed 1 | . . . . . . . . . 1 . . . . . . . . . . . . . . . . . . . . . . . . . Z-Imprinter (-7/Deep Caves) Combat | -11 -10 -10 -10 -8 -7 -7 -7 -7 -7 -6 -6 -6 -6 -6 -6 -5 -5 -5 -5 -4 -4 -4 -4 -4 -4 -4 -3 -3 -3 -3 -2 -2 -2 -1 -------- Run | Yrd Mat Min Sub Mat Fac Low Low Zio Dee Pro Fac Ext Cet Arc Hub Fac Upp Upp War Pro Fac Was Fac Upp Upp Zhi Pro Res Arm Lab Res Qua Sec Acc Hostile Shots Fired 1182 | . 46 . 97 45 17 24 29 . 77 12 100 36 . 2 48 28 36 16 37 12 59 . 2 25 8 . 10 37 110 . 120 52 85 12 Missed 584 | . 18 . 51 20 9 13 12 . 26 4 45 17 . 1 21 7 16 8 14 6 26 . 1 10 7 . 5 29 57 . 74 27 51 9 Hits 598 | . 28 . 46 25 8 11 17 . 51 8 55 19 . 1 27 21 20 8 23 6 33 . 1 15 1 . 5 8 53 . 46 25 34 3 Melee 2 | . . . . . . . . . . . . . . . . . . . . . . . . . . . . . 1 . 1 . . . Projectile 596 | . 28 . 46 25 8 11 17 . 51 8 55 19 . 1 27 21 20 8 23 6 33 . 1 15 1 . 5 8 52 . 45 25 34 3 AOE 5 | . . . . . . . . . . . . . . . . . . . 2 . 2 . . . . . . . 1 . . . . . Critical Strikes 24 | . 1 . 1 2 . . . . . . 1 1 1 . 1 2 . . 1 1 2 . . 1 . . . . 3 . 2 4 . . Part Disruptions 2 | . . . . . . . . . . . 1 . . . . . . . . . 1 . . . . . . . . . . . . . Damage Taken 12086 | . 304 . 554 275 75 87 278 . 1836 115 709 328 44 50 517 452 318 118 397 87 692 . 25 282 22 . 137 146 1050 . 1261 850 1008 69 Core 3111 | . 46 . 195 92 . . 59 . 593 45 251 24 . . 155 192 171 85 30 46 79 . . 53 . . 26 51 277 . 276 310 55 . Absorbed by Shields 85 | . . . . . . . . . . . . 71 14 . . . . . . . . . . . . . . . . . . . . . Redirected to Shielding 365 | . 5 . . . . . . . 172 47 . . . . . . . . . . . . . . . . 48 35 58 . . . . . Regen/Repaired (Parts) 948 | . . . . 6 52 . . . . . 57 . . . . . . . 62 . . . 16 . . . . . . . . 282 298 175 Core Remaining (%) 58 | 100 . . 3 83 . . . . . . . . . . 49 . . . . 47 . . . . . . 86 . . 67 . . 49 100 Volleys Fired 483 | . 60 . 56 1 . . 10 . 26 8 2 3 . 45 . 2 11 . 20 3 24 4 6 16 4 . . 58 6 3 17 89 5 4 Largest 2 | . 2 . 2 2 . . 2 . 1 1 1 1 . 1 . 1 1 . 1 1 1 1 1 1 1 . . 1 1 1 1 1 1 1 Hottest 110 | . 88 . 88 40 . . 50 . 60 39 39 39 . 81 . 46 46 . 60 60 60 60 60 60 60 . . 60 60 54 58 110 100 30 Shots Fired 548 | . 119 . 57 2 . . 13 . 26 8 2 3 . 45 . 2 11 . 20 3 24 4 6 16 4 . . 58 6 3 18 89 5 4 Gun 266 | . 99 . 1 2 . . 6 . 16 . . . . 45 . . . . 20 3 24 4 6 16 4 . . 14 6 . . . . . Cannon 194 | . 19 . 35 . . . . . . . . . . . . . . . . . . . . . . . . 43 . 3 5 87 2 . Launcher 70 | . 1 . 21 . . . 7 . 4 8 2 3 . . . 2 11 . . . . . . . . . . 1 . . 3 . 3 4 Special 18 | . . . . . . . . . 6 . . . . . . . . . . . . . . . . . . . . . 10 2 . . Kinetic 217 | . 99 . 18 2 . . 6 . . . . . . . . . . . . . . . . . . . . 43 . 3 5 41 . . Thermal 140 | . 19 . 25 . . . . . 5 . . . . 45 . . . . . . . . . . . . . . . . . 44 2 . Explosive 62 | . 1 . 14 . . . 7 . 4 8 2 3 . . . 2 11 . . . . . . . . . . . . . 3 . 3 4 Electromagnetic 3 | . . . . . . . . . . . . . . . . . . . . . . . . . . . . 1 . . . 2 . . Entropic 97 | . . . . . . . . . . . . . . . . . . . 20 3 24 4 6 16 4 . . 14 6 . . . . . Phasic 11 | . . . . . . . . . 11 . . . . . . . . . . . . . . . . . . . . . . . . . Robot Hit Streak 15 | . 13 . 13 6 . . 12 . 15 3 1 . . 6 . . 4 . 7 4 4 5 5 8 2 . . 8 2 . 5 7 10 1 Robot Miss Streak 9 | . 7 . 4 . . . . . 2 . 1 2 . 3 . . . . 3 1 9 1 4 8 5 . . 5 9 . 3 5 . 1 Penetration Max 1 | . . . . . . . . . . . . . . . . . . . . . . . . . . . . 1 . . . . . . Secondary Targets 4 | . 1 . . 1 . . 2 . . . . . . . . . . . . . . . . . . . . . . . . . . . Max Gunslinging Chain 1 | . 1 . . 1 . . 1 . . . . . . . . . . . . . . . . . . . . . . . . . . . Shots Hit Robots 551 | . 69 . 40 27 22 1 8 . 39 1 51 34 . 34 19 9 10 2 22 4 23 4 5 11 3 8 1 37 5 . 18 29 9 6 Core Hits 373 | . 30 . 27 13 4 . 13 . 16 5 26 28 . 15 1 6 18 . 27 4 22 1 5 5 1 1 1 25 5 . 14 27 15 18 Critical Kills 16 | . . . . 2 . . . . 1 . 2 . . 1 1 1 2 . . . . . . . . . . . . . . 6 . . Critical Parts Destroyed 47 | . . . . 1 7 . 1 . 2 . 10 7 . 1 4 2 2 1 5 . 1 . . 1 . . . 2 . . . . . . Critical Strikes 77 | . . . 1 3 7 . 1 . 3 . 12 7 . 4 5 3 5 1 7 . 3 . . 1 . 1 . 4 . . 1 8 . . Burn 2 | . . . . . . . . . . . . . . 2 . . . . . . . . . . . . . . . . . . . . Meltdown 6 | . . . . . . . . . . . . . . . . . . . . . . . . . . . . . . . . 6 . . Blast 4 | . . . . . . . . . . . . . . . . . . . . . . . . . . . . 2 . . . 2 . . Smash 49 | . . . . 3 7 . 1 . 3 . 12 7 . 2 5 3 5 1 . . . . . . . . . . . . . . . . Sever 2 | . . . 1 . . . . . . . . . . . . . . . . . . . . . . . . . . . 1 . . . Impale 5 | . . . . . . . . . . . . . . . . . . . 2 . 2 . . . . 1 . . . . . . . . Detonate 9 | . . . . . . . . . . . . . . . . . . . 5 . 1 . . 1 . . . 2 . . . . . . Melee Attacks 555 | . . . 21 49 42 4 6 1 30 1 135 38 . 5 26 15 11 5 11 1 14 . 4 13 4 9 1 9 19 . 33 6 23 19 Impact 257 | . . . . 27 39 4 6 1 29 1 56 29 . 5 26 14 11 4 5 . . . . . . . . . . . . . . . Slashing 159 | . . . 21 22 3 . . . . . 35 9 . . . 1 . . . . . . . . . . . . . . 20 6 23 19 Piercing 139 | . . . . . . . . . 1 . 44 . . . . . . 1 6 1 14 . 4 13 4 9 1 9 19 . 13 . . . Sneak Attacks 71 | . . . 2 8 7 . . . . . 16 15 . . 3 4 1 1 . 1 3 . 1 . . . 1 1 . . 3 . . 4 Combat Hostiles 12 | . . . . . 3 . . . . . 2 5 . . 1 1 . . . . . . . . . . . . . . . . . . Follow-up Attacks 12 | . . . . 1 1 . . . . . 4 6 . . . . . . . . . . . . . . . . . . . . . . Damage Inflicted 36463 | . 800 . 1560 1678 1599 67 956 . 2162 473 3806 3553 . 916 1198 912 1966 135 2032 236 1240 299 314 494 174 608 72 1989 309 . 1336 2667 1439 1473 Guns 5501 | . 474 . 6 19 . . 110 . 351 . . . . 742 . . . . 1059 164 822 299 222 384 79 . . 523 247 . . . . . Cannons 4389 | . 182 . 548 . . . . . . . . . . . . . . . . . . . . . . . . 958 . . 34 2667 . . Explosions 9292 | . 144 . 582 . . . 768 . 461 473 481 980 . . . 209 1496 . 873 . 188 . . 28 . . . 224 . . 638 . 989 758 Melee 17281 | . . . 424 1659 1599 67 78 . 1350 . 3325 2573 . 174 1198 703 470 135 100 72 230 . 92 82 95 608 72 284 62 . 664 . 450 715 Ramming . | . . . . . . . . . . . . . . . . . . . . . . . . . . . . . . . . . . . Kinetic 3358 | . 474 . 679 19 . . 110 . . . . . . . . . . . . . . . . . . . . 958 . . 34 1084 . . Thermal 4138 | . 182 . 377 . . . . . 87 . 88 . . 742 . . . . 873 . 188 . . . . . . 78 . . . 1523 . . Explosive 7389 | . 144 . 80 . . . 768 . 461 473 393 980 . . . 209 1496 . . . . . . . . . . . . . 638 . 989 758 Electromagnetic 234 | . . . . . . . . . . . . . . . . . . . . . . . . 28 . . . 146 . . . 60 . . Impact 11351 | . . . . 1165 1525 67 78 . 1350 . 2318 2168 . 174 1198 703 470 135 . . . . . . . . . . . . . . . . Slashing 3482 | . . . 424 494 74 . . . . . 479 405 . . . . . . . . . . . . . . . . . . 441 . 450 715 Piercing 2448 | . . . . . . . . . . . 528 . . . . . . . 100 72 230 . 92 82 95 608 72 284 62 . 223 . . . Entropic 3799 | . . . . . . . . . . . . . . . . . . . 1059 164 822 299 222 384 79 . . 523 247 . . . . . Phasic 264 | . . . . . . . . . 264 . . . . . . . . . . . . . . . . . . . . . . . . . Highest Corruption 8 | . . . . . . . . . . . 7 . . . 8 . . . . . 2 8 8 5 . . . 5 3 1 2 4 . . Average Corruption 3 | . . . . . . . . . . . 5 . . . 8 . . . . . 1 6 7 4 . . . 4 2 1 2 2 . . Corruption Purged 27 | . . . . . . . . . . . 7 . . . . . . . . . . . 3 5 . . . 5 3 . . 4 . . Corruption Blocked . | . . . . . . . . . . . . . . . . . . . . . . . . . . . . . . . . . . . Effects 59 | . . . . . . . . . . . 11 . . . . . . . . . 2 . 8 1 . . . 3 2 6 8 18 . . Message Errors 11 | . . . . . . . . . . . 3 . . . . . . . . . . . 3 . . . . . . 2 1 2 . . Matter Fused 16 | . . . . . . . . . . . . . . . . . . . . . 1 . 2 1 . . . . 1 3 5 3 . . Heat Flow Errors 6 | . . . . . . . . . . . 1 . . . . . . . . . . . . . . . . 1 1 1 1 1 . . Energy Discharges 8 | . . . . . . . . . . . 2 . . . . . . . . . 1 . 1 . . . . 2 . . . 2 . . Parts Fused 2 | . . . . . . . . . . . 1 . . . . . . . . . . . . . . . . . . . . 1 . . Data Loss (minor) 9 | . . . . . . . . . . . 3 . . . . . . . . . . . . . . . . . . . . 6 . . Data Loss (major) 1 | . . . . . . . . . . . . . . . . . . . . . . . . . . . . . . . . 1 . . Misfires 2 | . . . . . . . . . . . . . . . . . . . . . . . 1 . . . . . . . 1 . . . Alerts 3 | . . . . . . . . . . . 1 . . . . . . . . . . . . . . . . . . . . 2 . . Weapon Failures 1 | . . . . . . . . . . . . . . . . . . . . . . . 1 . . . . . . . . . . . Overload Shots . | . . . . . . . . . . . . . . . . . . . . . . . . . . . . . . . . . . . Overflow Damage 5822 | . . . 89 350 700 . 85 . 390 37 1140 891 . 42 388 305 261 110 34 . 230 . . . 81 363 . 75 . . 23 14 13 201 Projectiles 23 | . . . . . . . . . . . . . . . . . . . . . . . . . . . . 9 . . . 14 . . Explosions 359 | . . . 36 . . . 45 . . 37 10 . . . . 59 112 . . . 52 . . . . . . . . . 8 . . . Melee 5440 | . . . 53 350 700 . 40 . 390 . 1130 891 . 42 388 246 149 110 34 . 178 . . . 81 363 . 66 . . 15 . 13 201 Knockbacks 34 | . . . 2 2 1 . . . 7 . 5 5 . . 2 2 1 . . . . . . . . . . 7 . . . . . . Impact 25 | . . . . 2 1 . . . 7 . 5 5 . . 2 2 1 . . . . . . . . . . . . . . . . . Kinetic 8 | . . . 2 . . . . . . . . . . . . . . . . . . . . . . . . 6 . . . . . . Secondary 1 | . . . . . . . . . . . . . . . . . . . . . . . . . . . . 1 . . . . . . Self-Inflicted Damage 89 | . . . . . . . 40 . . 8 . 41 . . . . . . . . . . . . . . . . . . . . . . Shots 3 | . . . . . . . 1 . . 1 . 1 . . . . . . . . . . . . . . . . . . . . . . Rammed . | . . . . . . . . . . . . . . . . . . . . . . . . . . . . . . . . . . . Targets Rammed . | . . . . . . . . . . . . . . . . . . . . . . . . . . . . . . . . . . . Kicked . | . . . . . . . . . . . . . . . . . . . . . . . . . . . . . . . . . . . Crushed . | . . . . . . . . . . . . . . . . . . . . . . . . . . . . . . . . . . . Highest Temperature 340 | . 174 . 122 12 12 3 94 157 110 . 245 40 . 233 3 24 . . 75 160 96 . 236 206 60 . . 340 247 99 170 314 43 4 Average Temperature 43 | . 54 . 41 4 2 2 18 43 26 . 19 19 . 81 3 5 . . 38 63 49 . 81 52 25 . . 97 97 54 95 62 39 2 Received Heat Transfer 1783 | . 117 . 132 108 33 12 18 . 399 . 225 135 . . 93 . 27 . 9 . 24 . 9 18 . . 18 27 163 . 117 18 81 . Effects 1 | . . . . . . . . . . . . . . . . . . . . . . . . . . . . 1 . . . . . . Shutdowns 1 | . . . . . . . . . . . . . . . . . . . . . . . . . . . . 1 . . . . . . Siege Activations . | . . . . . . . . . . . . . . . . . . . . . . . . . . . . . . . . . . . Martial Activations . | . . . . . . . . . . . . . . . . . . . . . . . . . . . . . . . . . . . Shielding Activations . | . . . . . . . . . . . . . . . . . . . . . . . . . . . . . . . . . . . Robots Disrupted . | . . . . . . . . . . . . . . . . . . . . . . . . . . . . . . . . . . . Combat Hostiles . | . . . . . . . . . . . . . . . . . . . . . . . . . . . . . . . . . . . Robots Corrupted 45 | . . . . 2 8 . 1 . 2 . 8 10 . 1 5 4 3 . . . . . . . . . . . . . . 1 . . Combat Hostiles 23 | . . . . 1 4 . 1 . 2 . 2 6 . 1 3 . 2 . . . . . . . . . . . . . . 1 . . Parts Fried 52 | . . . . 1 9 . 1 . . . 11 14 . . 5 4 2 1 . . . . . . . . . 1 . . . 3 . . Impact Corruptions 113 | . . . . 5 18 . 2 . 16 . 27 19 . 1 12 5 5 3 . . . . . . . . . . . . . . . . Robots Melted 6 | . . . . . . . . . . . . . . . . . . . . . . . . . . . . . . . . 6 . . Combat Hostiles 6 | . . . . . . . . . . . . . . . . . . . . . . . . . . . . . . . . 6 . . Parts Melted 13 | . 1 . . . . . . . . . . . . . . . . . . . . . . . . . . . . . . 12 . . Heat Transferred 4390 | . 333 . 518 . . . . . 111 . 50 . . 1295 . . . . 675 . 150 . . . . . . 50 . . . 1208 . . Parts Sabotaged 2 | . . . . . . . . . . . . . . . . . . . . . . . . . . . . . 2 . . . . . Parts Stolen . | . . . . . . . . . . . . . . . . . . . . . . . . . . . . . . . . . . . Parts Stripped . | . . . . . . . . . . . . . . . . . . . . . . . . . . . . . . . . . . . Power Chain Reactions . | . . . . . . . . . . . . . . . . . . . . . . . . . . . . . . . . . . . Alert | -11 -10 -10 -10 -8 -7 -7 -7 -7 -7 -6 -6 -6 -6 -6 -6 -5 -5 -5 -5 -4 -4 -4 -4 -4 -4 -4 -3 -3 -3 -3 -2 -2 -2 -1 ------- Run | Yrd Mat Min Sub Mat Fac Low Low Zio Dee Pro Fac Ext Cet Arc Hub Fac Upp Upp War Pro Fac Was Fac Upp Upp Zhi Pro Res Arm Lab Res Qua Sec Acc Maximum Alert Level 3 | . . . . 1 1 . . . . . 2 3 3 1 2 1 . . . . 1 . . . . . . 2 3 . 1 1 1 2 Low Security (%) 70 | 100 100 100 . 70 94 . . . . . 53 29 . 9 73 83 . . . . 57 100 100 . . . . 54 . . 97 86 63 3 Level 1 20 | . . . . 29 5 . . . . . 30 65 . 90 23 16 . . . . 42 . . . . . . 16 31 . 2 13 36 45 Level 2 8 | . . . . . . . . . . . 16 . 90 . 3 . . . . . . . . . . . . 29 64 . . . . 50 Level 3 . | . . . . . . . . . . . . 4 9 . . . . . . . . . . . . . . . 3 . . . . . Level 4 . | . . . . . . . . . . . . . . . . . . . . . . . . . . . . . . . . . . . Level 5 . | . . . . . . . . . . . . . . . . . . . . . . . . . . . . . . . . . . . High Security . | . . . . . . . . . . . . . . . . . . . . . . . . . . . . . . . . . . . Max Security . | . . . . . . . . . . . . . . . . . . . . . . . . . . . . . . . . . . . Peak Influence 1030 | . 189 17 . 303 276 . . . . . 422 1030 714 313 442 216 . . . . 345 135 127 . . . . 461 715 . 233 293 323 602 Initial 572 | . . 17 . . 119 . . . . . 75 193 572 195 80 216 . . . . 31 120 80 . . . . . 233 . . 128 135 190 Average 158 | . 90 2 . 129 143 . . . . . 168 254 615 261 165 159 . . . . 188 124 73 . . . . 201 497 . 101 82 162 404 Influence Increases 12615 | . 371 15 285 513 703 15 335 . . 260 880 1361 306 215 542 253 280 95 324 100 474 15 167 75 155 21 98 791 690 . 771 1297 619 589 Destroy 0b10 Robot/C 4120 | . 180 . 60 180 120 . 280 . . 120 300 660 140 80 160 40 240 . 260 80 280 . . 60 . . 60 120 80 . 100 280 120 120 Destroy 0b10 Robot/NC 560 | . 50 . . 50 45 . . . . . 105 45 10 15 20 40 5 5 5 . 25 . 10 . 5 15 5 40 5 . 20 . 10 30 Destroy Leader 730 | . 48 . . 48 42 . 40 . . 20 114 84 . . 32 20 20 . . 10 40 . 2 . . . . 26 12 . 18 90 34 30 Allied During Kill 1014 | . . . . . 8 . . . . . . 514 144 88 163 9 . . 44 10 . . . . . 6 18 . 10 . . . . . Trap Triggered on 0b10 100 | . . . . . . . . . . . . . . . . . . . . . . . . . . . . . . . . 100 . . Successful Hack 1177 | . 57 . . 40 116 . . . . . 124 23 6 . 15 5 . . . . 29 . 75 . . . . 97 123 . . 137 95 235 Select Force Hacks 360 | . . . . 30 30 . . . . . 30 . . . 100 . . . . . . . . . . . . 60 50 . . 30 30 . Disable Machine 465 | . . . . 15 30 . . . . . 60 15 . 30 . . . . . . 15 . 15 . . . . 15 75 . 60 90 30 15 Destroy Structure 699 | . 6 . . 15 12 . . . . . 72 20 6 2 7 64 . . . . 40 . 20 . . . . 58 20 . 108 45 90 114 Partial Spotted 690 | . . 15 . 15 150 . . . . . 15 . . . 30 45 . . . . 45 15 30 . . . . 150 30 . 30 75 45 . Lose Combat Pursuer 2700 | . 30 . 225 120 150 15 15 . . 120 60 . . . 15 30 15 90 15 . . . 15 15 150 . 15 225 285 . 435 450 165 45 Influence Decreases 12176 | . 325 61 285 251 779 201 190 145 . 140 604 733 842 473 330 578 225 236 273 132 179 245 155 202 127 49 98 345 649 487 542 1286 541 468 Entered New Map 3336 | . . 29 . . 143 69 . 145 . . 45 203 452 293 150 226 45 34 31 82 19 225 35 48 . 28 . . 213 487 . 101 105 128 Time Decay 6537 | . 295 32 245 231 446 122 180 . . 130 499 380 180 140 130 262 170 202 182 30 110 20 120 154 127 21 42 325 206 . 422 678 286 170 Search Patrol Dispatched 100 | . . . . . . . . . . . . . . . . . . . . . . . . . . . . . 100 . . . . . Lost Part 610 | . 20 . 40 20 . 10 10 . . 10 60 20 10 . 30 70 10 . 40 . 50 . . . . . . . 70 . 100 40 . . Lost Ally 676 | . 10 . . . 40 . . . . . . 130 200 40 20 20 . . 20 20 . . . . . . 56 20 60 . 20 . . 20 Purge Threat 917 | . . . . . 150 . . . . . . . . . . . . . . . . . . . . . . . . . . 467 150 150 Squads Dispatched 81 | . 1 . . 5 10 . . . . 1 14 . . . 7 4 . . . . . . 4 . . . 1 13 4 . . 4 6 7 Investigation 38 | . 1 . . 2 5 . . . . . 8 . . . 3 2 . . . . . . 1 . . . . 8 1 . . 3 1 3 Extermination 16 | . . . . . 3 . . . . . 5 . . . . 1 . . . . . . 1 . . . . . 2 . . . 2 2 Reinforcement 20 | . . . . 3 2 . . . . . 1 . . . 2 1 . . . . . . 1 . . . . 4 1 . . 1 3 1 Assault 5 | . . . . . . . . . . 1 . . . . 2 . . . . . . . . . . . 1 . . . . . . 1 Garrison 2 | . . . . . . . . . . . . . . . . . . . . . . . 1 . . . . 1 . . . . . . Intercept . | . . . . . . . . . . . . . . . . . . . . . . . . . . . . . . . . . . . Searches Triggered 1 | . . . . . . . . . . . . . . . . . . . . . . . . . . . . . 1 . . . . . Unchained Authorized 3 | . . . . . . . . . . . . . . . . 1 . . . . 1 . 1 . . . . . . . . . . . Construction Impeded 1 | . . . . . . . . . . . . . . . . . . . . . . . . . . . . 1 . . . . . . Haulers Reinforced 2 | . . . . . 1 . . . . . . . . . . 1 . . . . . . . . . . . . . . . . . . Active Scanning Responses . | . . . . . . . . . . . . . . . . . . . . . . . . . . . . . . . . . . . Cargo Convoy Interrupts . | . . . . . . . . . . . . . . . . . . . . . . . . . . . . . . . . . . . Stealth | -11 -10 -10 -10 -8 -7 -7 -7 -7 -7 -6 -6 -6 -6 -6 -6 -5 -5 -5 -5 -4 -4 -4 -4 -4 -4 -4 -3 -3 -3 -3 -2 -2 -2 -1 --------- Run | Yrd Mat Min Sub Mat Fac Low Low Zio Dee Pro Fac Ext Cet Arc Hub Fac Upp Upp War Pro Fac Was Fac Upp Upp Zhi Pro Res Arm Lab Res Qua Sec Acc Distress Signals 37 | . 2 . . 2 . . . . . . . 1 2 . 1 1 . . 1 . . . . . . . . 8 2 . 14 . 2 1 Communications Jammed . | . . . . . . . . . . . . . . . . . . . . . . . . . . . . . . . . . . . Distress Signals . | . . . . . . . . . . . . . . . . . . . . . . . . . . . . . . . . . . . Times Spotted 684 | . 22 . 30 24 21 1 14 . 28 5 26 29 4 35 15 18 13 11 71 5 19 5 6 5 9 . 5 50 54 . 63 46 34 16 Peak Tracking Total 32 | . 3 . 6 6 7 1 4 . 32 8 4 11 4 2 9 10 6 5 10 2 7 5 2 3 10 . 5 9 14 . 16 9 9 5 Tactical Retreats 92 | . 1 . 6 3 4 1 1 . . 3 4 . . . 1 1 1 2 1 . . . 1 1 4 . 1 8 3 . 14 21 8 2 Traps | -11 -10 -10 -10 -8 -7 -7 -7 -7 -7 -6 -6 -6 -6 -6 -6 -5 -5 -5 -5 -4 -4 -4 -4 -4 -4 -4 -3 -3 -3 -3 -2 -2 -2 -1 ------- Run | Yrd Mat Min Sub Mat Fac Low Low Zio Dee Pro Fac Ext Cet Arc Hub Fac Upp Upp War Pro Fac Was Fac Upp Upp Zhi Pro Res Arm Lab Res Qua Sec Acc Traps Triggered 7 | . 1 . . . . . . . . . . 1 . . . . . . . . 2 . . . . . . . . . . 2 . 1 Indirectly . | . . . . . . . . . . . . . . . . . . . . . . . . . . . . . . . . . . . Trap Hack Attempts . | . . . . . . . . . . . . . . . . . . . . . . . . . . . . . . . . . . . Triggered . | . . . . . . . . . . . . . . . . . . . . . . . . . . . . . . . . . . . Disarmed 4 | . . . . . . . . . . . . . . . . . . . . . . . . . . . . . . . . . . 4 Reprogrammed 9 | . . . . . . . . . . . . . . . . . . . . . . . . . . . . . . . . 3 6 . Reused 10 | . . . . . . . . . . . . . . . . . . . . . . . . . . . . . . . . 10 . . Traps Extracted 5 | . . . . . . . . . . . . . . . . . . . . . . . 1 . . . . . . . . 4 . . Installed 15 | . . . . . . . . . . . . . . . . . . . . . . . 3 . . . . . . . . 12 . . Triggered 10 | . . . . . . . . . . . . . . . . . . . . . . . . . . . . . . . . 10 . . Most Traps Carried 8 | . . . . . . . . . . . . . . . . . 6 8 8 8 8 8 8 6 6 6 8 8 8 8 8 8 . . Machines | -11 -10 -10 -10 -8 -7 -7 -7 -7 -7 -6 -6 -6 -6 -6 -6 -5 -5 -5 -5 -4 -4 -4 -4 -4 -4 -4 -3 -3 -3 -3 -2 -2 -2 -1 ---------- Run | Yrd Mat Min Sub Mat Fac Low Low Zio Dee Pro Fac Ext Cet Arc Hub Fac Upp Upp War Pro Fac Was Fac Upp Upp Zhi Pro Res Arm Lab Res Qua Sec Acc Machines Disabled 42 | . . . 3 1 2 . 1 . 1 . 4 3 . 2 . . . . 1 . 1 . 1 . 1 1 . 1 5 1 4 6 2 1 Max in Single Turn 2 | . . . 2 1 1 . 1 . 1 . 2 1 . 1 . . . . 1 . 1 . 1 . 1 1 . 1 1 1 1 1 1 1 Garrison Access 16 | . . . . . 2 . . . . . 3 . . . 2 2 . . . . . . . . . . . 2 . . 2 1 1 1 Network Hub 3 | . . . . . . . . . . . . . . . 3 . . . . . . . . . . . . . . . . . . . Energy Cycler 1 | . . . . . . . . . . . . 1 . . . . . . . . . . . . . . . . . . . . . . Machines Repaired . | . . . . . . . . . . . . . . . . . . . . . . . . . . . . . . . . . . . Machines Dismantled . | . . . . . . . . . . . . . . . . . . . . . . . . . . . . . . . . . . . Machines Sabotaged 2 | . . . . . . . . . . . . . . . 2 . . . . . . . . . . . . . . . . . . . Overloaded Fab Kills 3 | . . . . . . . . . . . . . . . . . . . . . . . . . . . . . 3 . . . . . Hacking | -11 -10 -10 -10 -8 -7 -7 -7 -7 -7 -6 -6 -6 -6 -6 -6 -5 -5 -5 -5 -4 -4 -4 -4 -4 -4 -4 -3 -3 -3 -3 -2 -2 -2 -1 --------- Run | Yrd Mat Min Sub Mat Fac Low Low Zio Dee Pro Fac Ext Cet Arc Hub Fac Upp Upp War Pro Fac Was Fac Upp Upp Zhi Pro Res Arm Lab Res Qua Sec Acc Machines Accessed 189 | . 7 . 2 13 26 1 . . . . 32 8 3 . 8 9 1 2 2 . 2 . 6 2 . 4 . 13 7 . . 14 13 14 Terminals 111 | . 7 . . 9 16 . . . . . 15 7 3 . 7 3 1 . . . 2 . 4 . . . . 3 5 . . 10 10 9 Fabricators 14 | . . . . . 3 . . . . . 5 . . . . 1 . . . . . . . . . . . 2 2 . . . . 1 Repair Stations 9 | . . . . 2 2 . . . . . 2 . . . . . . . . . . . 1 . . . . . . . . 1 . 1 Recycling Units 13 | . . . . 1 2 . . . . . 5 1 . . . 1 . . . . . . . . . . . 2 . . . . . 1 Scanalyzers 15 | . . . . 1 1 . . . . . 2 . . . . 2 . . . . . . 1 . . . . 3 . . . 2 2 1 Garrison Access 14 | . . . . . 2 . . . . . 3 . . . 1 2 . . . . . . . . . . . 3 . . . 1 1 1 Total Hacks 715 | . 29 . 5 42 74 1 . . . . 99 13 6 . 15 43 2 6 7 . 29 . 38 2 . 17 . 44 28 . . 103 48 64 Successful 439 | . 17 . 5 34 55 1 . . . . 58 10 2 . 8 23 2 6 7 . 15 . 15 2 . 17 . 17 18 . . 75 26 26 Failed 272 | . 12 . . 8 18 . . . . . 41 3 4 . 7 19 . . . . 14 . 23 . . . . 26 10 . . 27 22 38 Catastrophic 28 | . 1 . . . . . . . . . 6 . 1 . . 4 . . . . 2 . 5 . . . . 3 1 . . 2 2 1 Database Lockouts 4 | . . . . . 1 . . . . . . . . . . 1 . . . . . . . . . . . 1 . . . 1 . . Manual 329 | . 22 . . 22 31 . 1 5 . . 44 4 1 . 7 23 . . . . 18 . 15 . . . . 8 12 . . 63 26 27 Terminals 478 | . 29 . . 30 48 . . . . . 51 12 6 . 14 21 2 . . . 29 . 25 . . . . 11 19 . . 94 43 44 Fabricators 66 | . . . . . 12 . . . . . 23 . . . . 6 . . . . . . . . . . . 9 9 . . . . 7 Repair Stations 18 | . . . . 3 3 . . . . . 3 . . . . . . . . . . . 5 . . . . . . . . 2 . 2 Recycling Units 29 | . . . . 1 4 . . . . . 10 1 . . . 3 . . . . . . . . . . . 4 . . . . . 6 Scanalyzers 59 | . . . . 8 4 . . . . . 7 . . . . 10 . . . . . . 8 . . . . 8 . . . 6 4 4 Garrison Access 27 | . . . . . 3 . . . . . 5 . . . 1 3 . . . . . . . . . . . 12 . . . 1 1 1 Terminal Hacks 204 | . 8 . 5 10 23 1 . . . . 9 7 2 . 2 2 2 6 7 . 8 . 7 2 . 17 . 4 8 . . 49 14 11 Record 22 | . . . 4 . . . . . . . . . 1 . . . 2 5 . . . . . . . 5 . . . . . 5 . . Part Schematic 15 | . 1 . . 1 3 . . . . . 1 . . . . . . . . . . . 1 . . 4 . . . . . 4 . . Robot Schematic 2 | . . . . . 1 . . . . . . 1 . . . . . . . . . . . . . . . . . . . . . . Robot Analysis 14 | . 4 . . . 3 . . . . . . . . . . . . . . . . . . . . 4 . . 1 . . 1 . 1 Prototype ID Bank 18 | . . . . . 2 . . . . . 1 . . . . . . . 6 . 1 . 1 . . 4 . . . . . 3 . . Open Door 18 | . . . . . . 1 . . . . 1 5 1 . . . . 1 1 . . . . 2 . . . . 2 . . . 3 1 Level Access Points 3 | . . . . . . . . . . . . . . . . . . . . . 1 . . . . . . . . . . 1 . 1 Branch Access Points 5 | . . . . 1 1 . . . . . . . . . . . . . . . 1 . 1 . . . . 1 . . . . . . Emergency Access Points 2 | . . . . . . . . . . . . . . . . . . . . . . . . . . . . . . . . 2 . . Machine Index 2 | . . . . . 1 . . . . . . . . . . . . . . . . . . . . . . . . . . 1 . . Terminal Index 6 | . 1 . . . . . . . . . 1 . . . . . . . . . 1 . . . . . . . . . . 1 1 1 Repair Station Index 1 | . . . . . . . . . . . . . . . . . . . . . . . . . . . . . . . . . . 1 Scanalyzer Index 2 | . . . . 1 . . . . . . . . . . . . . . . . . . . . . . . . . . . 1 . . Garrison Index 4 | . . . . . 1 . . . . . . . . . . . . . . . . . . . . . . . 1 . . 1 1 . Alert Level 5 | . . . . . 1 . . . . . 1 . . . . . . . . . 1 . . . . . . . . . . 2 . . Unreport Threat 8 | . . . . . 1 . . . . . . . . . . . . . . . . . . . . . . . . . . 5 1 1 Locate Traps 18 | . 1 . . . 1 . . . . . 2 1 . . . . . . . . 1 . 1 . . . . . . . . 7 2 2 Disarm Traps 1 | . . . . . . . . . . . . . . . . . . . . . . . . . . . . . . . . . . 1 Reprogram Traps 2 | . . . . . . . . . . . . . . . . . . . . . . . . . . . . . . . . 1 1 . Dispatch Records 2 | . . . . . 1 . . . . . . . . . . . . . . . . . . . . . . . . . . 1 . . Security Status 1 | . . . . . . . . . . . . . . . . . . . . . . . . . . . . . 1 . . . . . Transport Status 1 | . . . . . . . . . . . . . . . . . . . . . . . 1 . . . . . . . . . . . Investigation Status 1 | . . . . . 1 . . . . . . . . . . . . . . . . . . . . . . . . . . . . . Extermination Status 1 | . . . . . 1 . . . . . . . . . . . . . . . . . . . . . . . . . . . . . Recall Investigation 5 | . . . . 2 1 . . . . . . . . . . . . . . . . . . . . . . 1 . . . 1 . . Recall Extermination 3 | . . . . . . . . . . . . . . . . 1 . . . . . . . . . . . . . . . . 1 1 Recall Reinforcements 5 | . . . . 2 . . . . . . . . . . . . . . . . . . . . . . . . . . . 1 2 . Hauler Manifests 4 | . . . . . 2 . . . . . . . . . . . . . . . . . 1 . . . . . . . . 1 . . Registered Components 13 | . 1 . . 1 1 . . . . . 1 . . . . 1 . . . . 1 . 1 . . . . 1 1 . . 2 1 1 Registered Prototypes 5 | . . . . 1 1 . . . . . . . . . . . . . . . 1 . . . . . . . . . . 2 . . Zone Layout 14 | . . . . 1 . . . . . . 1 . . . 2 . . . . . . . . . . . . 1 2 . . 6 1 . Proto ID Catalog 1 | . . . 1 . . . . . . . . . . . . . . . . . . . . . . . . . . . . . . . Fabricator Hacks 28 | . . . . . 5 . . . . . 13 . . . . 1 . . . . . . . . . . . 4 3 . . . . 2 Network Status 4 | . . . . . . . . . . . 2 . . . . 1 . . . . . . . . . . . . 1 . . . . . Load Schematic 12 | . . . . . 3 . . . . . 5 . . . . . . . . . . . . . . . . 2 1 . . . . 1 Build 12 | . . . . . 2 . . . . . 6 . . . . . . . . . . . . . . . . 2 1 . . . . 1 Repair Station Hacks 9 | . . . . 1 3 . . . . . 2 . . . . . . . . . . . 1 . . . . . . . . 2 . . Scan Component 4 | . . . . 1 1 . . . . . 1 . . . . . . . . . . . . . . . . . . . . 1 . . Repair 3 | . . . . . 1 . . . . . 1 . . . . . . . . . . . . . . . . . . . . 1 . . Refit 2 | . . . . . 1 . . . . . . . . . . . . . . . . . 1 . . . . . . . . . . . Recycling Unit Hacks 13 | . . . . 1 2 . . . . . 5 1 . . . 1 . . . . . . . . . . . 2 . . . . . 1 Retrieve Components 13 | . . . . 1 2 . . . . . 5 1 . . . 1 . . . . . . . . . . . 2 . . . . . 1 Scanalyzer 31 | . . . . 7 1 . . . . . 3 . . . . 8 . . . . . . 4 . . . . 2 . . . 1 3 2 Insert Component 8 | . . . . 2 1 . . . . . . . . . . 2 . . . . . . 1 . . . . 1 . . . 1 . . Analyze 8 | . . . . 2 . . . . . . . . . . . 5 . . . . . . 1 . . . . . . . . . . . Retrieve Study 15 | . . . . 3 . . . . . . 3 . . . . 1 . . . . . . 2 . . . . 1 . . . . 3 2 Garrison Access Hacks 13 | . . . . . 2 . . . . . 3 . . . 1 2 . . . . . . . . . . . 2 . . . 1 1 1 Seal Access 13 | . . . . . 2 . . . . . 3 . . . 1 2 . . . . . . . . . . . 2 . . . 1 1 1 Unauthorized Hacks 140 | . 9 . . 15 19 . . . . . 23 2 . . 5 9 . . . . 7 . 3 . . . . 3 7 . . 21 8 9 Terminals 101 | . 9 . . 13 12 . . . . . 13 2 . . 5 4 . . . . 7 . 2 . . . . . 4 . . 20 7 3 Track 15 | . . . . 1 2 . . . . . 1 . . . . . . . . . 2 . 1 . . . . . 1 . . 4 2 1 Assimilate 8 | . 1 . . . 3 . . . . . 2 . . . 1 1 . . . . . . . . . . . . . . . . . . Botnet 33 | . 3 . . 5 2 . . . . . 4 1 . . 1 1 . . . . 2 . 1 . . . . . 2 . . 6 3 2 Disrupt 4 | . . . . . . . . . . . . . . . . . . . . . . . . . . . . . . . . 3 1 . Operators 5 | . . . . 1 . . . . . . . 1 . . . . . . . . 1 . . . . . . . 1 . . . 1 . Skim 33 | . 5 . . 6 5 . . . . . 6 . . . . 2 . . . . 2 . . . . . . . . . . 7 . . Sabotage 3 | . . . . . . . . . . . . . . . 3 . . . . . . . . . . . . . . . . . . . Fabricators 18 | . . . . . 5 . . . . . 4 . . . . 3 . . . . . . . . . . . 1 3 . . . . 2 Prioritize 8 | . . . . . 2 . . . . . 3 . . . . . . . . . . . . . . . . 1 1 . . . . 1 Liberate 5 | . . . . . 1 . . . . . 1 . . . . 1 . . . . . . . . . . . . 1 . . . . 1 Fabnet 1 | . . . . . . . . . . . . . . . . 1 . . . . . . . . . . . . . . . . . . Haulers 3 | . . . . . 2 . . . . . . . . . . 1 . . . . . . . . . . . . . . . . . . Overload 1 | . . . . . . . . . . . . . . . . . . . . . . . . . . . . . 1 . . . . . Repair Stations 4 | . . . . 1 . . . . . . 1 . . . . . . . . . . . 1 . . . . . . . . . . 1 Mechanics 1 | . . . . . . . . . . . 1 . . . . . . . . . . . . . . . . . . . . . . . Patch 3 | . . . . 1 . . . . . . . . . . . . . . . . . . 1 . . . . . . . . . . 1 Recycling Units 11 | . . . . . 2 . . . . . 4 . . . . 2 . . . . . . . . . . . . . . . . . 3 Monitor 3 | . . . . . . . . . . . 1 . . . . 1 . . . . . . . . . . . . . . . . . 1 Reject 1 | . . . . . . . . . . . 1 . . . . . . . . . . . . . . . . . . . . . . . Recyclers 4 | . . . . . 1 . . . . . 1 . . . . 1 . . . . . . . . . . . . . . . . . 1 Mask 2 | . . . . . . . . . . . 1 . . . . . . . . . . . . . . . . . . . . . . 1 Tunnel 1 | . . . . . 1 . . . . . . . . . . . . . . . . . . . . . . . . . . . . . Scanalyzers 6 | . . . . 1 . . . . . . 1 . . . . . . . . . . . . . . . . 2 . . . 1 1 . Extract 6 | . . . . 1 . . . . . . 1 . . . . . . . . . . . . . . . . 2 . . . 1 1 . Garrison Access . | . . . . . . . . . . . . . . . . . . . . . . . . . . . . . . . . . . . Data Cores Recovered 4 | . 1 . . 1 1 . . . . . . . . . 1 . . . . . . . . . . . . . . . . . . . Used 1 | . . . . . 1 . . . . . . . . . . . . . . . . . . . . . . . . . . . . . Hacking Detections 137 | . 7 . . 10 23 . . . . . 23 5 3 . 6 6 . . . . 1 . 6 . . . . 12 4 . . 10 8 13 Full Trace Events 21 | . . . . 1 4 . . . . . 7 . . . . 2 . . . . . . . . . . . 4 . . . 1 . 2 Feedback Events 1 | . . . . . . . . . . . 1 . . . . . . . . . . . . . . . . . . . . . . . Corruption 1 | . . . . . . . . . . . 1 . . . . . . . . . . . . . . . . . . . . . . . Feedback Blocked . | . . . . . . . . . . . . . . . . . . . . . . . . . . . . . . . . . . . Robot Schematics Acquired 5 | . . . . . 1 . . 3 . . . 1 . . . . . . . . . . . . . . . . . . . . . . Robots Built . | . . . . . . . . . . . . . . . . . . . . . . . . . . . . . . . . . . . Authchips . | . . . . . . . . . . . . . . . . . . . . . . . . . . . . . . . . . . . Time . | . . . . . . . . . . . . . . . . . . . . . . . . . . . . . . . . . . . Total Robot Build Rating . | . . . . . . . . . . . . . . . . . . . . . . . . . . . . . . . . . . . Part Schematics Acquired 79 | . 1 . . 12 3 . . 14 . . 6 . . . . 2 . . . . . . 2 . . 4 . 5 . . . 14 16 . Parts Built 15 | . . . . . 2 . . . . . 9 . . . . . . . . . . . . . . . . 1 1 . . . . 2 Authchips 1 | . . . . . . . . . . . . . . . . . . . . . . . . . . . . . 1 . . . . . Time 764 | . . . . . 82 . . . . . 367 . . . . . . . . . . . . . . . . 185 111 . . . . 19 Total Part Build Rating 79 | . . . . . 11 . . . . . 36 . . . . . . . . . . . . . . . . 9 9 . . . . 14 Part Studies Acquired 15 | . . . . 3 . . . . . . 3 . . . . 1 . . . . . . 2 . . . . 1 . . . . 3 2 Parts Repaired 3 | . . . . . 1 . . . . . 1 . . . . . . . . . . . . . . . . . . . . 1 . . Time 190 | . . . . . 38 . . . . . 44 . . . . . . . . . . . . . . . . . . . . 108 . . Parts Recycled . | . . . . . . . . . . . . . . . . . . . . . . . . . . . . . . . . . . . Recycled Matter . | . . . . . . . . . . . . . . . . . . . . . . . . . . . . . . . . . . . Retrieved Matter . | . . . . . . . . . . . . . . . . . . . . . . . . . . . . . . . . . . . Retrieved Components 39 | . . . . 2 8 . . . . . 9 2 . . . 1 . . . . . . . . . . . 14 . . . . . 3 Parts Scanalyzed 6 | . . . . 2 1 . . . . . . . . . . 2 . . . . . . 1 . . . . . . . . . . . Part Schematics Acquired 5 | . . . . 2 . . . . . . . . . . . 2 . . . . . . 1 . . . . . . . . . . . Parts Damaged . | . . . . . . . . . . . . . . . . . . . . . . . . . . . . . . . . . . . Bothacking | -11 -10 -10 -10 -8 -7 -7 -7 -7 -7 -6 -6 -6 -6 -6 -6 -5 -5 -5 -5 -4 -4 -4 -4 -4 -4 -4 -3 -3 -3 -3 -2 -2 -2 -1 ------------ Run | Yrd Mat Min Sub Mat Fac Low Low Zio Dee Pro Fac Ext Cet Arc Hub Fac Upp Upp War Pro Fac Was Fac Upp Upp Zhi Pro Res Arm Lab Res Qua Sec Acc Used RIF Installer . | . . . . . . . . . . . . . . . . . . . . . . . . . . . . . . . . . . . Robots Hacked 10 | . . . . . . . . . . . . . . . . . . . . . . . 1 . . . . 1 . . 6 2 . . Non-combat 2 | . . . . . . . . . . . . . . . . . . . . . . . . . . . . . . . 2 . . . Combat 8 | . . . . . . . . . . . . . . . . . . . . . . . 1 . . . . 1 . . 4 2 . . Robot Hacks Applied 8 | . . . . . . . . . . . . . . . . . . . . . . . . . . . . . . . 6 2 . . parse_system 8 | . . . . . . . . . . . . . . . . . . . . . . . . . . . . . . . 6 2 . . Relay Couplers Released 4 | . . . . . . . . . . . . . . . 1 . . . . . . . . . . . . . . . 3 . . . Machine Destruction 4 | . . . . . . . . . . . . . . . 1 . . . . . . . . . . . . . . . 3 . . . Fabnet Peak Effective % 3 | . . . . . . . . . . . . . . . . . . . . 3 3 3 3 3 3 3 1 1 1 1 . . . . Autooverrided 2 | . . . . . . . . . . . . . . . . . . . . . . . 1 . . . . 1 . . . . . . Robots Rewired 23 | . . . . . 1 . . . . . . 9 . . . . . . 5 . . . . . 4 . . . 3 . 1 . . . Allies Hacked 3 | . . . . . 1 . . . . . . . . . . . . . . 1 . . . . . . . . 1 . . . . . Hacks Repelled . | . . . . . . . . . . . . . . . . . . . . . . . . . . . . . . . . . . . Allies | -11 -10 -10 -10 -8 -7 -7 -7 -7 -7 -6 -6 -6 -6 -6 -6 -5 -5 -5 -5 -4 -4 -4 -4 -4 -4 -4 -3 -3 -3 -3 -2 -2 -2 -1 -------- Run | Yrd Mat Min Sub Mat Fac Low Low Zio Dee Pro Fac Ext Cet Arc Hub Fac Upp Upp War Pro Fac Was Fac Upp Upp Zhi Pro Res Arm Lab Res Qua Sec Acc Total Allies 48 | . 1 . . . 3 . . 5 . . 1 17 5 . . . . . 5 . . . 1 . 4 . . 1 3 . 1 . . 1 Largest Group 15 | . 1 . . . 2 . . 5 5 . 1 11 15 6 4 1 . . 5 4 . . 1 . 4 4 4 1 3 . . . . 1 Highest-Rated Group 895 | . 10 . . . 26 . . 294 294 . 10 476 895 436 309 96 . . 256 188 . . 49 . 138 138 138 64 144 . . . . 65 Highest-Rated Ally 159 | . 10 . . . 26 . . 96 96 . 10 159 159 96 96 96 . . 68 49 . . 49 . 48 48 48 64 48 . . . . 65 Total Orders 4 | . . . . . . . . . . . 2 . . . . . . . 2 . . . . . . . . . . . . . . . STAY 2 | . . . . . . . . . . . 1 . . . . . . . 1 . . . . . . . . . . . . . . . FOLLOW 2 | . . . . . . . . . . . 1 . . . . . . . 1 . . . . . . . . . . . . . . . Ally Attacks 351 | . . . . . 15 . . . 61 . . 68 80 32 22 6 . . 19 8 . . . . . . 17 5 18 . . . . . Total Damage 9559 | . . . . . 149 . . . 1395 . . 1826 1625 1139 793 120 . . 677 427 . . . . . . 613 213 582 . . . . . Kills 56 | . . . . . 1 . . . 9 . . 18 9 2 5 . . . 5 1 . . . . . . 3 1 2 . . . . . Allies Corrupted 4 | . . . . . . . . . . . . . . . . . . . . . . . . . . . . . 3 . . . . 1 Allies Melted 2 | . . . . . . . . . . . . . . . . . . . 1 . . . . . . . . . . . 1 . . . Intel | -11 -10 -10 -10 -8 -7 -7 -7 -7 -7 -6 -6 -6 -6 -6 -6 -5 -5 -5 -5 -4 -4 -4 -4 -4 -4 -4 -3 -3 -3 -3 -2 -2 -2 -1 ------- Run | Yrd Mat Min Sub Mat Fac Low Low Zio Dee Pro Fac Ext Cet Arc Hub Fac Upp Upp War Pro Fac Was Fac Upp Upp Zhi Pro Res Arm Lab Res Qua Sec Acc Active Infowar (turns) 21927 | . 813 208 661 610 1110 367 341 453 101 263 1930 885 371 283 267 561 357 446 1030 270 234 46 258 530 469 155 344 863 422 584 1203 4502 649 341 Optics 17073 | . . . . 67 . . . . . 12 1924 885 371 283 267 561 357 446 1030 270 234 46 258 530 469 155 344 863 422 584 1203 4502 649 341 Sensors 16371 | . . . . 132 1110 367 341 453 101 263 1834 882 371 283 267 407 . . . . 54 46 251 530 469 148 339 859 410 . 982 4485 646 341 Terrain 350 | . 172 . . . . . . . . . . . . . . . . 58 118 . . . . . . . . . . . 2 . . . Seismic 1912 | . 813 208 661 230 . . . . . . . . . . . . . . . . . . . . . . . . . . . . . . Decoding 1664 | . . . . . . . . . . . . . . . . . . . . . . . . . 398 155 344 767 . . . . . . T.N.C. 392 | . . . . . . . . . . . . . . . . . . . . . . . . . . . . . . . 392 . . . Machine Analysis 1136 | . . . . 316 . . . . . . 440 . . . . . . . . . . . . . . . . 380 . . . . . . Triangulation 1 | . . . . . . . . . . . . . . . . . . . . . . . . . . . . . . . . 1 . . Cloaking 1283 | . . . . . . . . . . . . . . . . . . . . . . . . . . . . 96 403 18 766 . . . Jamming 53 | . . . . . . . . . . . . . . . . . . . . . 11 . 39 . . . . . . . 2 1 . . ECM 2 | . . . . . . . . . . . . . . . . . . . . . . . . . . . . 2 . . . . . . Robot Analysis Total 14 | . 4 . . . 3 . . . . . . . . . . . . . . . . . . . . 4 . . 1 . . 1 . 1 Derelict Logs Recovered 19 | . . 2 1 . . 3 3 3 . . . . . . . . 2 1 . 1 . . . 2 1 . . . . . . . . . Drone Launches . | . . . . . . . . . . . . . . . . . . . . . . . . . . . . . . . . . . . Drone Recoveries . | . . . . . . . . . . . . . . . . . . . . . . . . . . . . . . . . . . . Decoded 0b10 Intel 11 | . . . . . . . . . . . . . . . . . . . . . . . . . . . . 11 . . . . . . Emergency Access 10 | . . . . . . . . . . . . . . . . . . . . . . . . . . . . 10 . . . . . . Garrisons 1 | . . . . . . . . . . . . . . . . . . . . . . . . . . . . 1 . . . . . . Exploration | -11 -10 -10 -10 -8 -7 -7 -7 -7 -7 -6 -6 -6 -6 -6 -6 -5 -5 -5 -5 -4 -4 -4 -4 -4 -4 -4 -3 -3 -3 -3 -2 -2 -2 -1 ------------- Run | Yrd Mat Min Sub Mat Fac Low Low Zio Dee Pro Fac Ext Cet Arc Hub Fac Upp Upp War Pro Fac Was Fac Upp Upp Zhi Pro Res Arm Lab Res Qua Sec Acc Turns Passed 23916 | 25 987 208 986 682 1112 367 364 453 1462 270 1930 885 371 283 267 561 357 446 1030 270 234 46 258 530 469 155 344 863 422 584 1203 4502 649 341 Spaces Moved 37995 | 42 978 449 1268 1002 2769 1014 960 1180 2099 510 3419 1000 270 116 411 1308 719 1082 1549 469 340 146 591 1090 906 156 670 1641 769 430 2495 4135 1270 742 Core 713 | 42 226 . 280 165 . . . . . . . . . . . . . . . . . . . . . . . . . . . . . . Treads . | . . . . . . . . . . . . . . . . . . . . . . . . . . . . . . . . . . . Legs . | . . . . . . . . . . . . . . . . . . . . . . . . . . . . . . . . . . . Wheels . | . . . . . . . . . . . . . . . . . . . . . . . . . . . . . . . . . . . Hover . | . . . . . . . . . . . . . . . . . . . . . . . . . . . . . . . . . . . Flight 37279 | . 752 449 988 837 2769 1014 960 1180 2099 510 3419 1000 270 116 411 1308 719 1082 1549 469 340 146 591 1090 906 156 670 1641 769 430 2495 4135 1267 742 Fastest Speed 11 | 50 37 37 37 26 24 24 24 24 24 29 24 24 24 27 24 29 35 26 20 20 11 20 20 21 25 25 25 20 27 39 22 36 22 19 Average Speed 30 | 50 46 37 40 34 24 26 24 24 30 30 29 25 25 27 25 29 37 32 21 20 19 20 21 22 25 25 25 25 30 39 34 41 34 19 Slowest Speed 250 | 50 120 37 250 105 26 27 27 24 105 32 105 107 107 27 112 117 115 35 26 20 24 102 22 25 25 25 25 112 115 39 119 205 125 22 Overloaded Moves 17 | . . . . . . . . . . . . . . . . . . . . . 11 . . 6 . . . . . . . . . . Propulsion Burnouts . | . . . . . . . . . . . . . . . . . . . . . . . . . . . . . . . . . . . Robots Hopped 143 | . 5 2 1 3 17 . . . 1 1 34 4 . . 20 11 . . 1 . 1 . 6 . 1 . . 5 6 . 12 3 7 2 Potential Cave-ins . | . . . . . . . . . . . . . . . . . . . . . . . . . . . . . . . . . . . Cave-ins Triggered 1 | . . . . . . . . . . . . . . . 1 . . . . . . . . . . . . . . . . . . . Teleports 2 | . . . . . . . . . . . . . . . . . . . . . . . . . . . . . 1 . . 1 . . Spacefolds 1 | . . . . . . . . . . . . . . . . . . . . . . . . . . . . . . . . . 1 . Exploration Rate (%) 69 | 3 99 85 65 77 58 95 83 85 83 63 72 92 85 78 45 36 85 87 93 63 17 93 21 92 85 61 76 48 56 95 63 97 78 25 Regions Visited 34 Branch Regions 23 Pre-discovered Areas 17 | . 3 1 1 2 1 1 . 2 . . 1 . . . . . . 1 . . . . . 1 . 3 . . . . . . . . Known Exits Taken 28 | . . 1 . . 1 1 1 1 1 1 1 1 1 1 1 1 1 1 1 1 . . 1 1 1 1 1 1 1 1 1 1 1 . Unknown Exits Taken 4 | 1 1 . 1 1 . . . . . . . . . . . . . . . . . . . . . . . . . . . . . . Scrap Searched 39 | . . 1 5 . . 4 3 3 . 2 . . . . . . 5 3 . 3 . . . 5 3 . 2 . . . . . . . Spaces Dug 263 | . . . 6 15 12 1 56 . . 30 52 . . . 3 3 1 2 . . 4 . 3 17 2 . . 4 10 . 16 6 12 8 Terrain Destroyed 931 | . 4 . 57 15 12 1 123 . 38 123 70 20 . . 3 30 124 2 34 1 19 . 10 27 6 . . 28 10 . 57 14 50 53 Melee 161 | . . . . 15 12 1 3 . . 1 52 . . . 3 3 1 2 . . 4 . 3 8 2 . . 3 10 . 14 4 12 8 Projectile 89 | . . . 4 . . . . . . . . . . . . . . . 9 1 15 . 7 19 4 . . 16 . . 4 10 . . AOE 681 | . 4 . 53 . . . 120 . 38 122 18 20 . . . 27 123 . 25 . . . . . . . . 9 . . 39 . 38 45 Terrain Rammed . | . . . . . . . . . . . . . . . . . . . . . . . . . . . . . . . . . . . Walls Destroyed . | . . . . . . . . . . . . . . . . . . . . . . . . . . . . . . . . . . . Machines Disabled . | . . . . . . . . . . . . . . . . . . . . . . . . . . . . . . . . . . . Actions | -11 -10 -10 -10 -8 -7 -7 -7 -7 -7 -6 -6 -6 -6 -6 -6 -5 -5 -5 -5 -4 -4 -4 -4 -4 -4 -4 -3 -3 -3 -3 -2 -2 -2 -1 --------- Run | Yrd Mat Min Sub Mat Fac Low Low Zio Dee Pro Fac Ext Cet Arc Hub Fac Upp Upp War Pro Fac Was Fac Upp Upp Zhi Pro Res Arm Lab Res Qua Sec Acc Total 48733 | 44 1403 488 1647 1272 3140 1107 1066 1349 2843 613 4082 1561 571 320 501 1436 778 1161 2201 639 450 157 701 1337 1135 252 842 2007 906 846 2750 6815 1422 891 Wait 8564 | . 322 42 245 165 292 87 72 141 615 80 507 472 293 148 77 90 13 58 525 166 53 . 95 213 201 71 158 204 83 377 92 2409 80 118 Move 37690 | 41 967 444 1265 995 2736 1013 959 1179 2096 507 3352 991 269 115 376 1288 718 1081 1546 468 338 145 578 1089 903 155 669 1630 756 429 2474 4128 1253 737 Hop 126 | . 5 2 1 3 15 . . . 1 1 32 4 . . 14 8 . . 1 . 1 . 6 . 1 . . 5 6 . 8 3 7 2 Pick Up 143 | 1 15 . 8 7 11 1 1 6 13 1 6 . . . . 8 3 3 6 . 2 1 . 1 2 1 . 3 7 8 2 19 6 1 Fast Attach 399 | 2 11 . 7 18 11 . 3 6 24 4 31 4 4 3 1 12 4 8 31 . 8 3 3 1 1 8 . 42 5 9 65 43 23 4 Attach 76 | . 2 . 3 2 3 . 1 2 7 5 2 . . . . 2 5 2 1 . 1 . . 1 1 . . 1 3 3 4 19 6 . Detach 54 | . . . . 1 1 . . . 6 4 1 . . . 1 1 6 . . . . . . 1 . . . 3 2 3 4 16 4 . Swap 118 | . 5 . 27 13 3 1 12 2 . . 5 6 . 1 3 . . 1 3 . 3 . 2 . 1 . 2 6 6 . 2 11 1 2 Drop 427 | . 16 . 14 21 17 1 2 12 26 2 26 5 5 3 3 10 7 4 33 . 6 4 4 2 3 8 . 46 6 14 49 60 14 4 Fire 483 | . 60 . 56 1 . . 10 . 26 8 2 3 . 45 . 2 11 . 20 3 24 4 6 16 4 . . 58 6 3 17 89 5 4 Melee 522 | . . . 21 46 40 4 6 1 29 1 118 30 . 5 26 15 11 4 10 1 14 . 4 13 4 9 1 9 19 . 33 6 23 19 Ram . | . . . . . . . . . . . . . . . . . . . . . . . . . . . . . . . . . . . Kick . | . . . . . . . . . . . . . . . . . . . . . . . . . . . . . . . . . . . Crush . | . . . . . . . . . . . . . . . . . . . . . . . . . . . . . . . . . . . Escape Stasis 15 | . . . . . . . . . . . . 15 . . . . . . . . . . . . . . . . . . . . . . Rewire 101 | . . . . . 11 . . . . . . 31 . . . . . . 25 1 . . . . 14 . 12 . 7 . . . . . Trap 15 | . . . . . . . . . . . . . . . . . . . . . . . 3 . . . . . . . . 12 . . Miscellaneous . | . . . . . . . . . . . . . . . . . . . . . . . . . . . . . . . . . . . Route ------- -11/Scrapyard -10/Materials (discovered 5 exits: *Mat x3 / [*Min] / *Sub) -10/Mines (discovered 3 exits: *Mat x2 / *Sub) -10/Subcaves (discovered 3 exits: *Mat x2 / [*Rec]) -8/Materials (discovered 2 exits: *Fac x2) -7/Factory (discovered 7 exits: Fac x3 / *Sto x2 / *Low x2) -7/Lower Caves (discovered 2 exits: *Low / *Zio) -7/Lower Caves (discovered 2 exits: *Fac / *Zio) -7/Zion (discovered 2 exits: *Dee / [*Pro]) -7/Deep Caves -6/Proximity Caves -6/Factory (discovered 8 exits: *Fac x4 / *Low x2 / *Ext x2) -6/Extension (discovered 2 exits: *Fac / *Cet) -6/Cetus (discovered 3 exits: *Fac x2 / *Arc) -6/Archives (discovered 3 exits: Fac / *Hub x2) -6/Hub_04(d) (discovered 2 exits: *Fac x2) -5/Factory (discovered 2 exits: *Upp x2) -5/Upper Caves -5/Upper Caves -5/Warlord -4/Proximity Caves -4/Factory (discovered 6 exits: Res x4 / *Upp x2) -4/Waste -4/Factory (discovered 3 exits: *Res / *Upp x2) -4/Upper Caves -4/Upper Caves (discovered 2 exits: *Res / *Zhi) -4/Zhirov -3/Proximity Caves -3/Research (discovered 5 exits: *Res x2 / *Arm / *Tes x2) -3/Armory (discovered 2 exits: Res / *Lab) -3/Lab -2/Research (discovered 3 exits: *Acc x2 / *Qua) -2/Quarantine (discovered 3 exits: *Acc / *Sec / [*Frg]) -2/Section 7 -1/Access To Fleet Rendezvous History --------- Turn | Location | Event 7 | -11/Scrapyard | Discovered new exit (range 16) 26 | -11/Scrapyard | Entered Materials 261 | -10/Materials | Discovered new exit (range 12) 348 | -10/Materials | Build established: Mutant 438 | -10/Materials | Discovered new exit (range 10) 607 | -10/Materials | Discovered new exit (range 4) 634 | -10/Materials | Discovered new exit (range 16) 702 | -10/Materials | Learned 2 Mines zone layouts 741 | -10/Materials | Discovered new exit (range 9) 751 | -10/Materials | Loaded intel: 9 trap records 791 | -10/Materials | Learned Storage emergency access door positions 826 | -10/Materials | Derelicts attacked the area 846 | -10/Materials | Learned location of Subcaves (-10) 907 | -10/Materials | Identified exit to Materials 945 | -10/Materials | Learned location of 2 exits from Mines 993 | -10/Materials | Learned location of Mines (-9) 1013 | -10/Materials | Entered Mines 1014 | -10/Mines | Identified exit to Subcaves 1077 | -10/Mines | Learned location of Storage (-7) 1136 | -10/Mines | Discovered exit to Materials (range 9) 1142 | -10/Mines | Learned Materials terminal intel 1221 | -10/Mines | Entered Subcaves 1278 | -10/Subcaves | Visited 4L-MR0's lab 1285 | -10/Subcaves | Found Rainbow Chip 1364 | -10/Subcaves | Discovered new exit (range 16) 1374 | -10/Subcaves | Shifting Twisted Machinery released Sub. Beam Cannon 1457 | -10/Subcaves | Ambushed by Subdweller buried in earth 1516 | -10/Subcaves | Shifting Twisted Machinery released Sub. Power Source 1564 | -10/Subcaves | Discovered new exit (range 12) 1613 | -10/Subcaves | Core integrity fell below 50% 1755 | -10/Subcaves | Disturbed a concealed Subdweller 1856 | -10/Subcaves | Shifting Twisted Machinery released Battle Cannon 1887 | -10/Subcaves | Core integrity fell below 20% 2059 | -10/Subcaves | Discovered new exit (range 8) 2071 | -10/Subcaves | Shifting Twisted Machinery released Sub. Optics 2152 | -10/Subcaves | Visited Clippyterm 2207 | -10/Subcaves | Entered Materials 2207 | -8/Materials | Evolved 4 slots: Propulsion x2, Utility x2 2208 | -8/Materials | Loaded intel: 12 terminal locations 2596 | -8/Materials | Met 7R-MNS 2649 | -8/Materials | Discovered new exit (range 15) 2674 | -8/Materials | Discovered new exit (range 3) 2730 | -8/Materials | Learned location of 1 exit from Storage 2773 | -8/Materials | Learned Factory stockpile data 2832 | -8/Materials | Learned 12 Factory zone layouts 2844 | -8/Materials | Learned 2 Storage zone layouts 2845 | -8/Materials | Learned 2 Storage zone layouts 2846 | -8/Materials | Learned location of Extension (-6) 2847 | -8/Materials | Learned Factory garrison access intel 2857 | -8/Materials | Learned Factory scanalyzer intel 2879 | -8/Materials | Learned location of Zion (-7) 2889 | -8/Materials | Entered Factory 2889 | -7/Factory | Evolved 2 slots: Propulsion x1, Utility x1 2890 | -7/Factory | Caught up to 7R-MNS 2890 | -7/Factory | Identified exit to Lower Caves 2891 | -7/Factory | Identified exit to Factory 2893 | -7/Factory | Loaded intel: 4 scanalyzer locations 2894 | -7/Factory | Loaded intel: 4 garrison access locations 2972 | -7/Factory | Build established: Hacker-Sprinter 3039 | -7/Factory | Identified exit to Storage 3119 | -7/Factory | Learned location of 2 exits from Archives 3172 | -7/Factory | Fabricated Adv. Hacking Suite? 3189 | -7/Factory | Learned Hub_04(d) stockpile data 3200 | -7/Factory | Attached Rainbow Chip, gained temporary slots: Power, Propulsion, Utility, Weapon 3224 | -7/Factory | Learned 4 Proximity Caves zone layouts 3225 | -7/Factory | Learned Extension emergency access door positions 3227 | -7/Factory | Learned location of 2 exits from Lower Caves 3233 | -7/Factory | Learned Factory stockpile data 3246 | -7/Factory | Repaired Hvy. Flail+? 3463 | -7/Factory | Central database locked down 3942 | -7/Factory | Fabricated Lrn. Missile Launcher? 4001 | -7/Factory | Entered Lower Caves 4002 | -7/Lower Caves | Encountered a Warlord checkpoint 4002 | -7/Lower Caves | Identified exit to Lower Caves 4038 | -7/Lower Caves | Spotted B-75 Beast 4167 | -7/Lower Caves | Lost 3 allies 4202 | -7/Lower Caves | Learned Factory trap positions 4270 | -7/Lower Caves | Learned Factory stockpile data 4283 | -7/Lower Caves | A Derelict revealed a hidden shortcut to a safe place 4291 | -7/Lower Caves | Identified exit to Zion 4368 | -7/Lower Caves | Entered another Lower Caves area 4413 | -7/Lower Caves | Encountered a Warlord checkpoint 4415 | -7/Lower Caves | Learned location of 2 exits from Factory 4416 | -7/Lower Caves | Learned 12 Factory zone layouts 4505 | -7/Lower Caves | Destroyed 7 combat bots 4545 | -7/Lower Caves | Learned Factory terminal intel 4553 | -7/Lower Caves | Attracted the attention of an 0b10 checkpoint 4592 | -7/Lower Caves | Acquired the password to a Derelict Tinkerer's latest research 4597 | -7/Lower Caves | Found Prototype Special Weapon 4732 | -7/Lower Caves | Entered Zion 4738 | -7/Zion | Identified Molecular Deconstructor 4761 | -7/Zion | Given the Hacking Drone Bay 4761 | -7/Zion | Found Prototype Device 4771 | -7/Zion | Discovered new exit (range 15) 4793 | -7/Zion | Found CR-A16's Pointy Stick 4798 | -7/Zion | Learned location of 1 exit from Factory 4802 | -7/Zion | Acquired unknown access codes intercepted by a Zionite 4808 | -7/Zion | Gained Derelict followers 4822 | -7/Zion | Learned location of 1 exit from Proximity Caves 4829 | -7/Zion | Learned Factory trap positions 4834 | -7/Zion | Given A8's code to call for help 4890 | -7/Zion | Learned location of Recycling (-7) 4922 | -7/Zion | Found Prototype Processor 4922 | -7/Zion | Identified Exp. Signal Interpreter 4924 | -7/Zion | Found Prototype Processor 4924 | -7/Zion | Identified Exp. Core Analyzer 4927 | -7/Zion | Found Prototype Processor 4927 | -7/Zion | Identified Exp. Armor Integrity Analyzer 4937 | -7/Zion | Received a visual enhancement algorithm 4940 | -7/Zion | Enhanced Grunt warped into view, answering call for help 4941 | -7/Zion | Enhanced Grunt warped into view, answering call for help 5116 | -7/Zion | Opened final containment barrier to the Deep Caves 5120 | -7/Zion | Discovered new exit (range 3) 5120 | -7/Zion | Saw the warning signs outside the Deep Caves entrance 5120 | -7/Zion | Identified exit to Deep Caves 5185 | -7/Zion | Entered Deep Caves 5185 | -7/Deep Caves | Accompanied by 5 allies 5213 | -7/Deep Caves | Build established: Sprinter 5267 | -7/Deep Caves | Attacked by Z-Imprinter 5303 | -7/Deep Caves | Lost 3 allies 5307 | -7/Deep Caves | Allies destroyed Z-Imprinter 5429 | -7/Deep Caves | Z-Facility disabled 5444 | -7/Deep Caves | Found Prototype Protection 5444 | -7/Deep Caves | Identified Zio. Weapon Casing 5448 | -7/Deep Caves | Core integrity fell below 50% 5472 | -7/Deep Caves | Found Prototype Device 5472 | -7/Deep Caves | Identified Exp. Thermal Shield 5487 | -7/Deep Caves | Lost 6 parts (1p2n2u1w) 5708 | -7/Deep Caves | Build established: Mutant 5739 | -7/Deep Caves | Discovered new exit (range 6) 5741 | -7/Deep Caves | Identified exit to Proximity Caves 5835 | -7/Deep Caves | Spotted AG-50450 5863 | -7/Deep Caves | Spotted AG-35319 5908 | -7/Deep Caves | Found Zio. Weapon Casing 6143 | -7/Deep Caves | Core integrity fell below 20% 6151 | -7/Deep Caves | Build established: Sprinter 6163 | -7/Deep Caves | Destroyed AG-50450 6190 | -7/Deep Caves | Lost 4 parts (3u1w) 6300 | -7/Deep Caves | Found Zio. Weapon Casing 6629 | -7/Deep Caves | Triggered Deep Caves wall 6629 | -7/Deep Caves | Exposed GOLEM chamber 6633 | -7/Deep Caves | Found GOLEM Unit 6647 | -7/Deep Caves | Entered Proximity Caves 6656 | -6/Proximity Caves | Attracted the attention of an 0b10 checkpoint 6677 | -6/Proximity Caves | Attracted the attention of an 0b10 outpost 6917 | -6/Proximity Caves | Entered Factory 6917 | -6/Factory | Evolved 2 slots: Utility x2 6918 | -6/Factory | Identified exit to Extension 6919 | -6/Factory | Identified exit to Lower Caves 6919 | -6/Factory | Identified exit to Factory 6921 | -6/Factory | Loaded intel: 90 trap records 6923 | -6/Factory | Loaded intel: 28 terminal locations 6973 | -6/Factory | Repaired Hvy. Rocket Launcher? 6997 | -6/Factory | Lost 3 parts (2n1u) 7201 | -6/Factory | Lost 4 parts (1p2u1w) 7398 | -6/Factory | Fabricated Cesium-ion Thruster (x2) 7519 | -6/Factory | Build established: Hacker-Scout 7597 | -6/Factory | Discovered exit to Factory (range 13) 7774 | -6/Factory | Fabricated Cesium-ion Thruster (x2) 7779 | -6/Factory | Fabricated Cesium-ion Thruster? 8460 | -6/Factory | Spotted B-75 Beast 8512 | -6/Factory | Fabricated Adv. Hacking Suite? 8562 | -6/Factory | Learned location of 2 exits from Archives 8581 | -6/Factory | Learned Extension emergency access door positions 8583 | -6/Factory | Learned location of 1 exit from Cetus 8585 | -6/Factory | Learned location of 1 exit from Lower Caves 8651 | -6/Factory | Fabricated Adv. System Restoration Module (x2) 8847 | -6/Factory | Entered Extension 8847 | -6/Extension | Accompanied by 1 ally 8848 | -6/Extension | Identified exit to Cetus 8867 | -6/Extension | Rescued a captive Derelict 8868 | -6/Extension | Rescued a captive Derelict 8871 | -6/Extension | Rescued a captive Derelict 8897 | -6/Extension | Rescued A7 9227 | -6/Extension | Warlord forces began an assault 9262 | -6/Extension | Spotted B-75 Beast 9302 | -6/Extension | Spotted B-75 Beast 9344 | -6/Extension | Lost 9 allies 9422 | -6/Extension | Disrupted transfer network 9457 | -6/Extension | Rescued a captive Derelict 9458 | -6/Extension | Rescued a captive Derelict 9492 | -6/Extension | Rescued a captive Derelict 9493 | -6/Extension | Rescued a captive Derelict 9678 | -6/Extension | Discovered exit to Factory (range 10) 9688 | -6/Extension | Energy Cycler disabled 9693 | -6/Extension | Disrupted transfer network 9715 | -6/Extension | Destroyed 9 combat bots 9732 | -6/Extension | Entered Cetus 9732 | -6/Cetus | Accompanied by 11 allies (A7) 9737 | -6/Cetus | Acquired a Cetus Manufacturing Module code from A7 9745 | -6/Cetus | Spotted Cetus Guard 9745 | -6/Cetus | Spotted Cetus Guard 9748 | -6/Cetus | Spotted Cetus Guard 9748 | -6/Cetus | Spotted Cetus Guard 9761 | -6/Cetus | Allies destroyed Cetus Guard 9769 | -6/Cetus | Allies destroyed Cetus Guard 9797 | -6/Cetus | Started Cetus Manufacturing Module 9819 | -6/Cetus | Escorted A7 to Cetus Mainframe 9822 | -6/Cetus | Manufactured an Enhanced Grunt 9847 | -6/Cetus | Manufactured an Enhanced Grunt 9872 | -6/Cetus | Manufactured an Enhanced Grunt 9897 | -6/Cetus | Manufactured an Enhanced Grunt 9902 | -6/Cetus | Build established: Commander-Scout 9922 | -6/Cetus | Manufactured an Enhanced Grunt 9938 | -6/Cetus | Discovered new exit (range 21) 9986 | -6/Cetus | Spotted Cetus Guard 9986 | -6/Cetus | Spotted Cetus Guard 9991 | -6/Cetus | Spotted Cetus Guard 9998 | -6/Cetus | Allies destroyed Cetus Guard 9998 | -6/Cetus | Spotted Cetus Guard 10014 | -6/Cetus | Discovered exit to Factory (range 22) 10015 | -6/Cetus | Extracted ID and sensor layout for unrecognized location from A7's data core 10030 | -6/Cetus | Allies destroyed Cetus Guard 10030 | -6/Cetus | Allies destroyed Cetus Guard 10039 | -6/Cetus | Met Revision 17 10049 | -6/Cetus | Identified exit to Archives 10061 | -6/Cetus | Lost 9 allies 10103 | -6/Cetus | Entered Archives 10103 | -6/Archives | Accompanied by 6 allies 10104 | -6/Archives | Identified exit to Hub_04(d) 10328 | -6/Archives | Build established: Hacker-Scout 10386 | -6/Archives | Entered Hub_04(d) 10386 | -6/Hub_04(d) | Accompanied by 4 allies 10417 | -6/Hub_04(d) | Discovered exit to Factory (range 21) 10620 | -6/Hub_04(d) | Discovered exit to Factory (range 7) 10626 | -6/Hub_04(d) | Network Hub disabled 10626 | -6/Hub_04(d) | Network Hub disabled 10633 | -6/Hub_04(d) | Spotted Lightning 10633 | -6/Hub_04(d) | Spotted Lightning 10639 | -6/Hub_04(d) | Crushed by falling debris 10639 | -6/Hub_04(d) | Core integrity fell below 50% 10643 | -6/Hub_04(d) | Network Hub disabled 10653 | -6/Hub_04(d) | Entered Factory 10653 | -5/Factory | Accompanied by 1 ally 10653 | -5/Factory | Evolved 2 slots: Power x1, Propulsion x1 10654 | -5/Factory | Identified exit to Upper Caves 10655 | -5/Factory | Loaded intel: 97 trap records 10670 | -5/Factory | Lost 3 parts (3n) 11073 | -5/Factory | Central database locked down 11081 | -5/Factory | Unchained authorized (6S-H0T) 11214 | -5/Factory | Entered Upper Caves 11215 | -5/Upper Caves | Identified exit to Upper Caves 11245 | -5/Upper Caves | Lost 6 parts (3n3u) 11329 | -5/Upper Caves | Attracted the attention of an 0b10 checkpoint 11421 | -5/Upper Caves | Learned location of 1 exit from Factory 11423 | -5/Upper Caves | Encountered a Warlord checkpoint 11571 | -5/Upper Caves | Entered another Upper Caves area 11572 | -5/Upper Caves | Identified exit to Warlord 11683 | -5/Upper Caves | Entered an active Warlord outpost 11687 | -5/Upper Caves | Learned Research security intel 11687 | -5/Upper Caves | Learned Extension security intel 11687 | -5/Upper Caves | Learned Armory garrison access intel 12017 | -5/Upper Caves | Entered Warlord 12157 | -5/Warlord | Warlord's base attacked by MAIN.C 12166 | -5/Warlord | Found Prototype Device 12166 | -5/Warlord | Identified Thermal Barrier 12168 | -5/Warlord | Found Prototype Processor 12168 | -5/Warlord | Identified Exp. Target Analyzer 12171 | -5/Warlord | Found Prototype Processor 12171 | -5/Warlord | Identified Exp. Targeting Computer 12175 | -5/Warlord | Found Prototype Reactor 12175 | -5/Warlord | Identified Vortex Chain Reactor 12198 | -5/Warlord | Found Prototype Energy Gun 12198 | -5/Warlord | Identified Vortex Shotgun 12201 | -5/Warlord | Found Vortex Shotgun 12206 | -5/Warlord | Found Prototype Launcher 12208 | -5/Warlord | Found Vortex Shotgun 12209 | -5/Warlord | Found Vortex Shotgun 12228 | -5/Warlord | Build established: Hacker-Sprinter 12234 | -5/Warlord | Met Warlord 12306 | -5/Warlord | Spotted B-75 Beast 12316 | -5/Warlord | Spotted B-86 Titan 12409 | -5/Warlord | Warlord forces counterattacked 12481 | -5/Warlord | Spotted Striker 12482 | -5/Warlord | Spotted B-86 Titan 12488 | -5/Warlord | Spotted B-75 Beast 12514 | -5/Warlord | Spotted Executioner 12542 | -5/Warlord | Destroyed Executioner 12546 | -5/Warlord | Discovered new exit (range 20) 12547 | -5/Warlord | Found Exp. Core Analyzer 12563 | -5/Warlord | Spotted B-86 Titan 12565 | -5/Warlord | Lost 18 allies 12571 | -5/Warlord | Spotted B-75 Beast 12573 | -5/Warlord | Destroyed B-86 Titan 12579 | -5/Warlord | Spotted Executioner 12596 | -5/Warlord | Destroyed Executioner 12629 | -5/Warlord | Lost 3 parts (1p2n) 12663 | -5/Warlord | Lost 7 allies 12738 | -5/Warlord | Spotted Executioner 12801 | -5/Warlord | Build established: Scavenger-Sprinter 12807 | -5/Warlord | Spotted Executioner 12832 | -5/Warlord | Warlord base infiltrated, sounded retreat 12884 | -5/Warlord | Spotted Striker 12908 | -5/Warlord | Spotted Executioner 12912 | -5/Warlord | Allies destroyed Executioner 12944 | -5/Warlord | Lost 5 allies 12959 | -5/Warlord | Spotted Executioner 12967 | -5/Warlord | Spotted Executioner 13003 | -5/Warlord | Identified exit to Proximity Caves 13014 | -5/Warlord | Lost 12 allies 13047 | -5/Warlord | Entered Proximity Caves 13047 | -4/Proximity Caves | Accompanied by 4 allies 13205 | -4/Proximity Caves | Learned Research trap positions 13244 | -4/Proximity Caves | P-70 Sage assimilated allied Sentinel 6a 13260 | -4/Proximity Caves | P-70 Sage assimilated allied Sentinel 6b 13316 | -4/Proximity Caves | Discovered new exit (range 7) 13317 | -4/Proximity Caves | Core integrity fell below 50% 13317 | -4/Proximity Caves | Identified exit to Factory 13317 | -4/Proximity Caves | Entered Factory 13317 | -4/Factory | Evolved 2 slots: Utility x2 13318 | -4/Factory | Identified exit to Upper Caves 13364 | -4/Factory | Identified exit to Research 13444 | -4/Factory | Lost 3 parts (1p1u1w) 13515 | -4/Factory | Unchained authorized (6S-H0T) 13551 | -4/Factory | Manually triggered Chute Trap 13551 | -4/Factory | Sucked down chute 13551 | -4/Factory | Entered Waste 13558 | -4/Waste | Spotted C-40 Crusher 13560 | -4/Waste | Spotted C-40 Crusher 13566 | -4/Waste | EMP discharged 13566 | -4/Waste | Spotted C-40 Crusher 13591 | -4/Waste | Spotted C-40 Crusher 13591 | -4/Waste | Spotted C-40 Crusher 13591 | -4/Waste | Spotted C-40 Crusher 13594 | -4/Waste | Discovered new exit (range 13) 13596 | -4/Waste | Identified exit to Factory 13597 | -4/Waste | Entered Factory 13604 | -4/Factory | Spotted B-86 Titan 13749 | -4/Factory | Garrison activated, responded to threat 13783 | -4/Factory | Unchained authorized (6S-H0T) 13788 | -4/Factory | Discovered exit to Research (range 11) 13855 | -4/Factory | Entered Upper Caves 13991 | -4/Upper Caves | Build established: Scavenger-Ninja 14072 | -4/Upper Caves | Attracted the attention of an 0b10 checkpoint 14128 | -4/Upper Caves | Learned location of Armory (-3) 14176 | -4/Upper Caves | Encountered a Warlord checkpoint 14201 | -4/Upper Caves | Spotted B-86 Titan 14382 | -4/Upper Caves | Discovered new exit (range 11) 14384 | -4/Upper Caves | Learned location of 2 exits from Research 14385 | -4/Upper Caves | Identified exit to Upper Caves 14385 | -4/Upper Caves | Entered another Upper Caves area 14385 | -4/Upper Caves | Discovered exit to Research (range 15) 14398 | -4/Upper Caves | Encountered a Warlord checkpoint 14588 | -4/Upper Caves | Spotted B-86 Titan 14619 | -4/Upper Caves | Discovered new exit (range 10) 14621 | -4/Upper Caves | Found DCF Scrap (13 items) 14684 | -4/Upper Caves | Attacked by a delusional Derelict stockpiling Unaware 14759 | -4/Upper Caves | Build established: Hacker-Scout 14812 | -4/Upper Caves | Identified exit to Zhirov 14854 | -4/Upper Caves | Entered Zhirov 14854 | -4/Zhirov | Accompanied by 4 allies 14854 | -4/Zhirov | Discovered new exit (range 3) 14859 | -4/Zhirov | Met Zhirov 14865 | -4/Zhirov | Learned location of Quarantine (-2) 14865 | -4/Zhirov | Learned location of Testing (-3) 14865 | -4/Zhirov | Learned location of Command (-1) 14866 | -4/Zhirov | Zhirov requested help retrieving the SGEMP Prototype 14871 | -4/Zhirov | Found Alien Artifact 14871 | -4/Zhirov | Identified Integrated Dissipator 14871 | -4/Zhirov | Installed Integrated Dissipator, increased core heat dissipation (+20) 14878 | -4/Zhirov | Found Alien Artifact 14979 | -4/Zhirov | Identified exit to Proximity Caves 15009 | -4/Zhirov | Entered Proximity Caves 15009 | -3/Proximity Caves | Accompanied by 4 allies 15162 | -3/Proximity Caves | Build established: Scavenger-Scout 15265 | -3/Proximity Caves | Attracted the attention of an 0b10 outpost 15322 | -3/Proximity Caves | Lost 4 allies 15325 | -3/Proximity Caves | Discovered exit to Research (range 18) 15353 | -3/Proximity Caves | Entered Research 15353 | -3/Research | Evolved 2 slots: Propulsion x1, Utility x1 15354 | -3/Research | Identified exit to Testing 15355 | -3/Research | Identified exit to Armory 15356 | -3/Research | Loaded intel: 58 trap records 15368 | -3/Research | Garrison activated, responded to threat 15553 | -3/Research | Revision forces began assault on 0b10 15555 | -3/Research | Met up with Revision 17++ 15695 | -3/Research | Discovered new exit (range 15) 15698 | -3/Research | Identified exit to Research 15724 | -3/Research | Found Prototype Device 15724 | -3/Research | Identified Exp. EM Disruption Field 15755 | -3/Research | Identified Transdimensional Reconstructor 15811 | -3/Research | Found Prototype Device 15811 | -3/Research | Identified Exp. ECM Suite 15818 | -3/Research | Found Fusion Bomb Launcher 15822 | -3/Research | Spotted B-86 Titan 15888 | -3/Research | Found Prototype Device 15888 | -3/Research | Identified Exp. Focal Shield 15898 | -3/Research | Fabricated Exp. Q-thruster? 15899 | -3/Research | Found Prototype Launcher 15899 | -3/Research | Identified Tactical Quantum Warhead 15955 | -3/Research | Found Prototype Launcher 15955 | -3/Research | Identified Adv. Micro-nuke Launcher 15966 | -3/Research | Central database locked down 15988 | -3/Research | Discovered exit to Research (range 15) 16005 | -3/Research | Found Prototype Launcher 16005 | -3/Research | Identified Hellfire Missile Launcher 16024 | -3/Research | Found Prototype Processor 16024 | -3/Research | Identified Spectral Analyzer 16032 | -3/Research | Found Prototype Device 16032 | -3/Research | Identified Exp. Thermal Defense Suite 16053 | -3/Research | Research terminal network offline 16216 | -3/Research | Entered Armory 16367 | -3/Armory | Fabricated Exp. Q-thruster? 16371 | -3/Armory | Spotted B-86 Titan 16407 | -3/Armory | Warped through subspace to slip node 16407 | -3/Armory | Discovered new exit (range 1) 16407 | -3/Armory | Identified exit to Lab 16466 | -3/Armory | Search patrols dispatched 16494 | -3/Armory | Discovered exit to Research (range 14) 16638 | -3/Armory | Entered Lab 16638 | -3/Lab | Discovered exit to Research (range 9) 16643 | -3/Lab | Hidden lab's door opened automatically 16643 | -3/Lab | Sensor layout match revealed 16644 | -3/Lab | Gained access to the hidden lab's interior 16657 | -3/Lab | Lost 5 parts (1p2n2u) 16687 | -3/Lab | Found Alien Artifact 16687 | -3/Lab | Identified Core Expander 16687 | -3/Lab | Installed Core Expander, added new Power slot 16692 | -3/Lab | Found Alien Artifact 16692 | -3/Lab | Identified Integrated Reactor 16692 | -3/Lab | Installed Integrated Reactor, increased core energy generation (+10) 16699 | -3/Lab | Found Transdimensional Reconstructor 16718 | -3/Lab | Found Prototype Energy Cannon 16718 | -3/Lab | Identified Warp Cannon 16722 | -3/Lab | Found Prototype Energy Cannon 16722 | -3/Lab | Identified Potential Cannon 16724 | -3/Lab | Found Prototype Protection 16724 | -3/Lab | Identified Exp. Powered Armor 16879 | -3/Lab | Found Prototype Special Weapon 16893 | -3/Lab | Build established: Hacker-Mutant 17088 | -3/Lab | Found Prototype Hackware 17184 | -3/Lab | Found Alien Artifact 17195 | -3/Lab | Identified Core Reset Matrix 17195 | -3/Lab | Used Core Reset Matrix 17216 | -3/Lab | Identified Gui. Remote Datajack 17222 | -3/Lab | Entered Research 17222 | -2/Research | Warlord forces began assault on 0b10 17222 | -2/Research | Evolved 2 slots: Propulsion x1, Utility x1 17304 | -2/Research | Found Prototype Device 17304 | -2/Research | Identified Exp. EM Disruption Field 17332 | -2/Research | Research machine network offline 17476 | -2/Research | Borebot progress halted 17496 | -2/Research | Build established: Alien-Ninja 17546 | -2/Research | Found Prototype Device 17546 | -2/Research | Identified Exp. Phase Shifter 17549 | -2/Research | Found Prototype Device 17549 | -2/Research | Identified Adv. Kinecellerator 17586 | -2/Research | Found Prototype Processor 17586 | -2/Research | Identified Exp. Melee Analysis Suite 17634 | -2/Research | Spotted Striker 17700 | -2/Research | Lost 10 allies 17727 | -2/Research | Borebot progress halted 17815 | -2/Research | Spotted Executioner 17816 | -2/Research | Spotted Executioner 17820 | -2/Research | Build established: Scavenger-Ninja 17840 | -2/Research | Spotted Executioner 17863 | -2/Research | Rewired Executioner 17895 | -2/Research | Lost 8 allies 17929 | -2/Research | Borebot progress halted 17938 | -2/Research | Found Prototype Launcher 17938 | -2/Research | Identified Enh. Gamma Bomb Array 17952 | -2/Research | Spotted Striker 17999 | -2/Research | Lost 5 allies 18033 | -2/Research | Found Prototype Reactor 18033 | -2/Research | Identified Singularity Reactor 18068 | -2/Research | Found Exp. Core Analyzer 18076 | -2/Research | Discovered new exit (range 11) 18081 | -2/Research | Identified exit to Access 18097 | -2/Research | Met up with Warlord 18129 | -2/Research | Met DD-05H 18177 | -2/Research | Found Prototype Processor 18177 | -2/Research | Identified Exp. Targeting Computer 18228 | -2/Research | Discovered exit to Access (range 12) 18232 | -2/Research | Spotted B-90 Cyclops 18319 | -2/Research | Build established: Scavenger-Scout 18373 | -2/Research | Spotted B-90 Cyclops 18383 | -2/Research | Spotted Executioner 18383 | -2/Research | Spotted Executioner 18411 | -2/Research | Discovered new exit (range 6) 18413 | -2/Research | Identified exit to Quarantine 18425 | -2/Research | Entered Quarantine 18426 | -2/Quarantine | Detected hypermatrix surge 18426 | -2/Quarantine | Sensed 6 artifacts in vicinity 18434 | -2/Quarantine | Cryocooling Duct disabled 18449 | -2/Quarantine | Ambient heat levels rising (+20) 18449 | -2/Quarantine | Non-combat units ordered to evacuate 18455 | -2/Quarantine | Identified Deep Network Scanner 18470 | -2/Quarantine | Cryocooling Duct disabled 18474 | -2/Quarantine | Cryocooling Duct disabled 18485 | -2/Quarantine | Ambient heat levels rising (+20) 18485 | -2/Quarantine | Combat units ordered to evacuate 18489 | -2/Quarantine | Ambient heat levels rising (+20) 18490 | -2/Quarantine | Central database locked down 18547 | -2/Quarantine | Lost 4 allies 18585 | -2/Quarantine | Quarantine Guard activated 18585 | -2/Quarantine | Warped through subspace 18594 | -2/Quarantine | Spotted Quarantine Guard 18600 | -2/Quarantine | Spotted Quarantine Guard 18600 | -2/Quarantine | Spotted Quarantine Guard 18600 | -2/Quarantine | Spotted Quarantine Guard 18600 | -2/Quarantine | Spotted Quarantine Guard 18600 | -2/Quarantine | Spotted Quarantine Guard 18734 | -2/Quarantine | Destroyed Quarantine Guard 18769 | -2/Quarantine | Spotted Quarantine Guard 18813 | -2/Quarantine | Spotted Quarantine Guard 18813 | -2/Quarantine | Spotted Quarantine Guard 18842 | -2/Quarantine | Spotted Quarantine Guard 18859 | -2/Quarantine | Destroyed Quarantine Guard 18866 | -2/Quarantine | Lost 3 parts (2n1u) 18960 | -2/Quarantine | Destroyed Quarantine Guard 18968 | -2/Quarantine | Destroyed Quarantine Guard 18990 | -2/Quarantine | Destroyed Quarantine Guard 19013 | -2/Quarantine | Destroyed Quarantine Guard 19135 | -2/Quarantine | Destroyed Quarantine Guard 19287 | -2/Quarantine | Destroyed Quarantine Guard 19292 | -2/Quarantine | Repaired Centrium Light Armor Plating? 19312 | -2/Quarantine | Destroyed Quarantine Guard 19607 | -2/Quarantine | Found Prototype Device 19607 | -2/Quarantine | Identified System Purifier 19848 | -2/Quarantine | Found Sigix Broadsword 19862 | -2/Quarantine | Found Terrabomb 19903 | -2/Quarantine | Found Subatomic Replicator 19904 | -2/Quarantine | Used Subatomic Replicator to replicate Warp Cannon 20156 | -2/Quarantine | Build established: Alien-Scout 20518 | -2/Quarantine | Build established: Hacker-Scout 22355 | -2/Quarantine | Spotted Fortress 22739 | -2/Quarantine | Destroyed Fortress 22748 | -2/Quarantine | Found Prototype Device 22748 | -2/Quarantine | Identified Thermal Barrier 22754 | -2/Quarantine | Found Unknown Protection 22754 | -2/Quarantine | Identified Hvy. Insulated Plating 22757 | -2/Quarantine | Found Prototype Protection 22757 | -2/Quarantine | Identified Centrium Heavy Armor Plating 22921 | -2/Quarantine | Discovered new exit (range 6) 22921 | -2/Quarantine | Discovered new exit (range 7) 22921 | -2/Quarantine | Spotted Quarantine Guard 22921 | -2/Quarantine | Spotted Quarantine Guard 22926 | -2/Quarantine | Identified exit to Section 7 22927 | -2/Quarantine | Entered Section 7 22928 | -2/Section 7 | Detected hypermatrix surge 22928 | -2/Section 7 | Sensed 23 artifacts in vicinity 22951 | -2/Section 7 | Spotted S7 Guard 22983 | -2/Section 7 | Found Spacefold Activator 23257 | -2/Section 7 | Spotted S7 Guard 23268 | -2/Section 7 | Build established: Alien-Scout 23312 | -2/Section 7 | Spotted Alpha 7 23312 | -2/Section 7 | Spotted Alpha 7 23316 | -2/Section 7 | Core integrity fell below 50% 23335 | -2/Section 7 | Spotted Executioner 23335 | -2/Section 7 | Spotted Executioner 23345 | -2/Section 7 | Spotted B-99 Colossus 23358 | -2/Section 7 | Found Transdimensional Reconstructor 23360 | -2/Section 7 | Found Transdimensional Reconstructor 23361 | -2/Section 7 | Found Transdimensional Reconstructor 23394 | -2/Section 7 | Found Core Expander 23394 | -2/Section 7 | Installed Core Expander, added new Propulsion slot 23395 | -2/Section 7 | Found Core Expander 23395 | -2/Section 7 | Installed Core Expander, added new Weapon slot 23397 | -2/Section 7 | Found Core Expander 23410 | -2/Section 7 | Found LRC Storage 23410 | -2/Section 7 | Installed LRC Storage, increased inventory capacity (+2) 23413 | -2/Section 7 | Found LRC Matter Compressor 23413 | -2/Section 7 | Installed LRC Matter Compressor, increased matter storage capacity (+125) 23524 | -2/Section 7 | Found Prototype Device 23524 | -2/Section 7 | Identified Exp. Focal Shield 23527 | -2/Section 7 | Found Prototype Device 23527 | -2/Section 7 | Identified Exp. Shock Absorption System 23558 | -2/Section 7 | Discovered exit to Access (range 18) 23576 | -2/Section 7 | Entered Access 23608 | -1/Access | Identified exit to Surface 23631 | -1/Access | Spotted B-99 Colossus 23785 | -1/Access | Spotted B-99 Colossus 23785 | -1/Access | Spotted B-99 Colossus 23825 | -1/Access | Fabricated Hyp. Mass Driver (x2) 23826 | -1/Access | First assault squad dispatched 23917 | *** | Heading to fleet! Last Messages --------------- originally regretted as they were relatively easy to disarm. Newer versions implement dedicated weapon shielding for the cannon itself, and improved firing rates made possible by a new capacitor design. Like all behemoth class robots, the B-90's overall structure is slightly weak against thermal attacks, but is protected by sufficient armor to make up for it. 23894_ ALERT: Suspicious activity at Terminal A014. Dispatching Investigation squad. 23895_ K-01 Serf cleans the Terminal. 23896_ ALERT: Potential suspicious activity detected, Programmers report to Access Zone 6V. 23898_ Connecting with Terminal... >>Open(Door) Sealed Barrier opened. 23914_ Slug penetrates R-10 Processor. 23915_ The Access Shell folds into the floor. Map ----- +----------------------------------------------------+ | ??????????# ## ?# # #? | | ??????????# ## ## ###########+##? | | ??????????# ## ## #?????????# #?? | | ??????????# ## ] ## #?????????# #?? | | ########### ############### #?????????# #?? | | ] # + ## #?????????# #?? | | # # ## #?????????# #?? | | "" # # ## #?????????# #?? | | "" # #? ##########???????### #?? | | """""" # #? #????????????????#"#+### | | """""" # # [ #?????????????????# "" | | "" # # #?????????????????# "" | | "" # + #?????????????????# | | # # ""Y"" #?????????????????# | | + + """"" #?????????????????# | | """ """ # #? #?????????????????# | | """T""" # #? #?????????????????# " | | ########### #??###########?????????????????# " | | ??????????# #?????###??????????????????????# | | ??????????# ####### ##########?????????????# | | ??????????# """T""" "?????????????# | | ??????????# """ """ "????BB???????# | | ??????????# "????BB ######### | | ??????????# "???? | | ??????????# "" "??? | | ??????????# @" "??? | | ??????????# "??? | | ??????????# "????BB ######### | | ??????????# "????BB????????????? | | ??????????# "??????????????????? | | ??????????# ####### ##########??????????????????? | | ??????????# #?????###???????????????????????????? | | ########### #???????????????????????????????????? | | # #???????????????????????????????????? | | # #???????????????????????????????????? | | + #???????????????????????????????????? | | # ########????????????????????????????? | | !]] #R #????????????????????????????? | | ]]] # #????????????????????????????? | | ]]] # ########????????????????????????????? | | ########### #???????????????????????????????????? | | ??????????# #???????????????????????????????????? | | ??????????# #???????????????????????????????????? | | ??????????# #???????????????????????????????????? | | ??????????# ???????????????????????????????????? | | ??????????# ???????????????????????????????????? | | ??????????####???????????????????????????????????? | | ?????????????????????????????????????????????????? | | ?????????????????????????????????????????????????? | | ?????????????????????????????????????????????????? | +----------------------------------------------------+ Best States ------------- Heat Dissipation 95 Energy Generation 65 Energy Capacity 760 Matter Stores 316 Matter Capacity 425 Sight Range 24 Robot Scan Range 18 Terrain Scan Range 20 Terrain Scan Density 210 Jamming Range 16 Cloak Strength 4 Power Amplification 30 Additional Mass Support 9 Armor Coverage 800 Core Shielding 20 Utility Shielding 90 Weapon Shielding 100 Evasion (%) 78 Targeting Accuracy 12 Melee Accuracy 12 Target Analysis 10 Core Analysis 8 Kinecelleration 50 Offensive Hacking 44 Defensive Hacking 12 Authchip Count 3 Trap Extractor Capacity 8 Item Schematics ----------------- Tri-rail Accelerator | -2/Quarantine | Hacked Hyp. Mass Driver | -2/Quarantine | Hacked Lgt. Quantum Reactor | -2/Quarantine | Hacked Hvy. Shield Leg | -2/Quarantine | Hacked Med. Storage Unit | -2/Quarantine | Extracted Adv. Corruption Screen | -2/Quarantine | Extracted Lyr. Heavy Armor Plating | -2/Quarantine | Extracted Imp. System Restoration Module | -2/Quarantine | Extracted Adv. Thermal Shield | -2/Quarantine | Extracted Lyr. Light Armor Plating | -2/Quarantine | Extracted Exp. Utility Shielding | -2/Quarantine | Extracted Myomer Leg | -2/Quarantine | Extracted Adv. Weapon Cycler | -2/Quarantine | Extracted EM Disruption Field | -2/Quarantine | Extracted Imp. Arc Projector | -2/Section 7 | Extracted Enh. Multireflex Exoskeleton | -2/Section 7 | Extracted Imp. Focal Shield | -2/Section 7 | Extracted Hyp. Railgun | -2/Section 7 | Extracted Enh. Gamma Bomb Array | -2/Section 7 | Extracted Mic. Antimatter Reactor | -2/Section 7 | Extracted Imp. Gyrokinetic Inverter | -2/Section 7 | Extracted Imp. Salvage Targeting Computer | -2/Section 7 | Extracted Linear Accelerator | -2/Section 7 | Extracted Exp. Energy Well | -2/Section 7 | Extracted Cld. Gravmag System | -2/Section 7 | Extracted Imp. Fusion Compressor | -2/Section 7 | Extracted Matter Filter | -2/Section 7 | Extracted Hardcell Cannon | -2/Section 7 | Extracted Graviton Reactor | -2/Section 7 | Extracted Nuclear Pulse Array | -2/Section 7 | Extracted Robot Schematics ------------------ None Fabricated ------------ Adv. Hacking Suite | x1 | -7/Factory Lrn. Missile Launcher | x1 | -7/Factory Cesium-ion Thruster | x2 | -6/Factory Cesium-ion Thruster | x2 | -6/Factory Cesium-ion Thruster | x2 | -6/Factory Adv. Hacking Suite | x1 | -6/Factory Adv. System Restoration Module | x2 | -6/Factory Exp. Q-thruster | x1 | -3/Research Exp. Q-thruster | x1 | -3/Armory | Authchip Hyp. Mass Driver | x2 | -1/Access Repaired ---------- Hvy. Flail | 60% | -7/Factory Hvy. Rocket Launcher | 32% | -6/Factory Centrium Light Armor Plating | 37% | -2/Quarantine Studied --------- Impulse Thruster Array | -2/Section 7 | Hacked Mic. Antimatter Reactor | -2/Section 7 | Hacked Impulse Thruster | -2/Section 7 | Hacked Field Propulsion Array | -1/Access | Hacked Lgt. Quantum Reactor | -1/Access | Hacked Alien Tech Used ----------------- Integrated Dissipator Transdimensional Reconstructor Core Expander Integrated Reactor Core Reset Matrix Sigix Broadsword Subatomic Replicator Spacefold Activator LRC Storage LRC Matter Compressor Achievements -------------- Fishing Tech Challenges ------------ None Game ------ Seed AlertLongswordKatana Manual? 0 Play Time 07:56:04 Cumulative 502.4 hours Start 2026.01.29 @ 21:36:52 End 2026.02.01 @ 00:13:41 Sessions 7 Manual Loads 0 Difficulty Rogue Special Mode None Game No. 171 Rogue 171 Adventurer 0 Explorer 0 Win Type 2 Total 16 Types 7/0/5/1/0/0/0/1/0/2 Lore% 90 Gallery% 86 Achievement% 74 Wizard Run 0 Options --------- Layout 1 ASCII 0 Keyboard 0 Movement Mouse Keybinds 0 Fullscreen 2 Font 32/SmallcapsGlow Map View 50x35 Zoom Use 0% Tactical HUD 1 Map Filters NONE Filters NONE Steam 1 RUN: 92440d8c-f5a5-4650-80f3-9c78ef88857d